{"text_format":"1","workbook":"xlsx","n_sheets":15,"sheets":["Consignes","Projet","prepration groupe","Selection des voies d'éval","feuilles d'évaluation","Notes","Feuil2","Feuil3","Feuil6","Feuil4","Feuil1","Feuil5","Barèmes","dégaines","voies notes"],"not_rendered":{"charts":0,"images":0,"macros":1,"external_links":0,"defined_names":11,"comments":0,"pivot_tables":0},"unopened":[],"bounds":{"document_bytes":16777216,"sheet_cells":100000,"rows_first":2000,"rows_last":500,"rows_between":2000,"halvings":0,"cell_chars":16384,"cell_head_chars":4096},"cells_cut":0,"cells_raw":0,"read":"whole","date_system":"1900"}

{"sheet":"Consignes","index":0,"n_rows":7,"n_cols":3,"rows_kept":7,"cut":false,"hidden":false,"merged":[[6,2,6,8],[5,2,5,8],[5,9,5,10],[2,2,2,8],[3,2,3,8],[3,9,3,10],[4,2,4,8],[4,9,4,10]]}
[]
[]
[null,1,"Dans l'onglet \"projet\" : entrer la liste élèves et leurs 2 voies de projet (sans le nb de dégaines)"]
[null,2,"Dans l'onglet \"préparation groupe\" :  faire un copier coller des \"projets\" dans la partie gauche en cliquant sur le bouton et organiser ses groupes dans la partie droite ( 3 ou 4 grimpeurs max en même temps pour ne réaliser que 8 groupes) BIEN GARDER LE NUMERO DE L'ELEVE"]
[null,3,"Dans l'onglet \"sélection des voies\" : copier coller la liste des groupes avec les  voies séléctionnées"]
[null,4,"Dans l'onglet \"feuilles d'évaluation\" : imprimer les feuilles pour votre évaluation"]
[null,5,"Dans l'onglet \"Notes\" : entrer les résultats dans les colonnes jaunes APRES avoir cliqué sur \"mise à jour des voies pour calcul des notes\""]

{"sheet":"Projet","index":1,"n_rows":34,"n_cols":14,"rows_kept":34,"cut":false,"hidden":false,"merged":[[2,0,2,2],[2,3,2,7],[2,9,2,13],[0,0,1,13]]}
["entrer la liste élèves et leurs 2 voies de projet (sans le nb de dégaines)"]
[]
["Classe de 3°",null,null," Projet Voie 1",null,null,null,null,null," Projet Voie 2"]
[null,"NOMS","Prénoms","Secteur","n° de corde","couleur des prises","Nom de la voie","cotation",null,"Secteur","n° de corde","couleur des prises","Nom de la voie","cotation"]
[1]
[2]
[3]
[4]
[5]
[6]
[7]
[8]
[9]
[10]
[11]
[12]
[13]
[14]
[15]
[16]
[17]
[18]
[19]
[20]
[21]
[22]
[23]
[24]
[25]
[26]
[27]
[28]
[29]
[30]

{"sheet":"prepration groupe","index":2,"n_rows":39,"n_cols":24,"rows_kept":39,"cut":false,"hidden":false,"merged":[[0,0,1,14],[38,15,41,15],[3,15,6,15],[8,15,11,15],[13,15,16,15],[18,15,21,15],[23,15,26,15],[2,0,2,2],[28,15,31,15],[33,15,36,15],[2,3,2,7],[2,9,2,13]]}
["Cliquer sur le bouton                                       (pour copier coller la liste) puis organiser ses groupes à droite EN CONSERVANT LE N° de l'élève                                                                                            en faisant des \"couper coller\" (comme cela vous savez qui a été traité !)"]
[]
["Classe de 3°",null,null," Projet Voie 1",null,null,null,null,null," Projet Voie 2",null,null,null,null,null,null,"N° éléve","NOMS","Prénoms","Secteur","n° de corde","couleur des prises","Nom de la voie","cotation"]
[null,"NOMS","Prénoms","Secteur","n° de corde","couleur des prises","Nom de la voie","cotation",null,"Secteur","n° de corde","couleur des prises","Nom de la voie","cotation",null,"Groupe 1"]
[1]
[2]
[3]
[4]
[5,null,null,null,null,null,null,null,null,null,null,null,null,null,null,"Groupe 2"]
[6]
[7]
[8]
[9]
[10,null,null,null,null,null,null,null,null,null,null,null,null,null,null,"Groupe 3"]
[11]
[12]
[13]
[14]
[15,null,null,null,null,null,null,null,null,null,null,null,null,null,null,"Groupe 4"]
[16]
[17]
[18]
[19]
[20,null,null,null,null,null,null,null,null,null,null,null,null,null,null,"Groupe 5"]
[21]
[22]
[23]
[24]
[25,null,null,null,null,null,null,null,null,null,null,null,null,null,null,"Groupe 6"]
[26]
[27]
[28]
[29]
[30,null,null,null,null,null,null,null,null,null,null,null,null,null,null,"Groupe 7"]
[]
[]
[]
[]
[null,null,null,null,null,null,null,null,null,null,null,null,null,null,null,"Groupe 8"]

{"sheet":"Selection des voies d'éval","index":3,"n_rows":38,"n_cols":5,"rows_kept":38,"cut":false,"hidden":false,"merged":[[0,0,0,8],[1,4,1,8],[2,0,5,0],[7,0,10,0],[37,0,40,0],[12,0,15,0],[17,0,20,0],[22,0,25,0],[27,0,30,0],[32,0,35,0],[1,1,1,3]]}
["Copier coller les voies sélectionnées"]
[null,"Classe de 3°",null,null,"Voie d'évaluation sélectionnée"]
["Groupe 1"]
[]
[]
[]
[]
["Groupe 2"]
[]
[]
[]
[]
["Groupe 3"]
[]
[]
[]
[]
["Groupe 4"]
[]
[]
[]
[]
["Groupe 5"]
[]
[]
[]
[]
["Groupe 6"]
[]
[]
[]
[]
["Groupe 7"]
[]
[]
[]
[]
["Groupe 8"]

{"sheet":"feuilles d'évaluation","index":4,"n_rows":395,"n_cols":11,"rows_kept":395,"cut":false,"hidden":false,"merged":[[3,10,12,16],[324,0,334,0],[336,0,346,0],[349,0,359,0],[361,0,371,0],[373,0,383,0],[385,0,395,0],[393,1,393,3],[394,1,394,3],[324,1,325,1],[369,1,369,3],[370,1,370,3],[373,1,374,1],[385,1,386,1],[358,1,358,3],[382,1,382,3],[2,0,12,0],[14,0,24,0],[26,0,36,0],[38,0,48,0],[51,0,61,0],[63,0,73,0],[75,0,85,0],[87,0,97,0],[101,0,111,0],[113,0,123,0],[125,0,135,0],[137,0,147,0],[150,0,160,0],[162,0,172,0],[174,0,184,0],[186,0,196,0],[200,0,210,0],[262,0,272,0],[309,1,309,3],[312,1,313,1],[312,5,313,8],[320,1,320,3],[321,1,321,3],[250,1,251,1],[250,5,251,8],[258,1,258,3],[259,1,259,3],[262,1,263,1],[262,5,263,8],[274,0,284,0],[286,0,296,0],[300,0,310,0],[312,0,322,0],[295,1,295,3],[300,1,301,1],[300,5,301,8],[308,1,308,3],[170,1,170,3],[171,1,171,3],[174,1,175,1],[244,1,244,3],[245,1,245,3],[248,1,248,8],[224,0,234,0],[236,0,246,0],[250,0,260,0],[233,1,233,3],[236,1,237,1],[236,5,237,8],[183,1,183,3],[186,1,187,1],[186,5,187,8],[194,1,194,3],[195,1,195,3],[198,1,198,8],[224,1,225,1],[224,5,225,8],[232,1,232,3],[212,0,222,0],[133,1,133,3],[134,1,134,3],[137,1,138,1],[137,5,138,8],[145,1,145,3],[146,1,146,3],[148,1,148,8],[150,1,151,1],[150,5,151,8],[38,5,39,8],[38,1,39,1],[35,1,35,3],[26,5,27,8],[26,1,27,1],[0,1,0,8],[49,1,49,8],[113,1,114,1],[113,5,114,8],[22,1,22,3],[23,1,23,3],[11,1,11,3],[10,1,10,3],[2,1,3,1],[63,5,64,8],[71,1,71,3],[72,1,72,3],[99,1,99,8],[101,1,102,1],[101,5,102,8],[109,1,109,3],[110,1,110,3],[46,1,46,3],[96,1,96,3],[34,1,34,3],[361,1,362,1],[361,5,362,8],[270,1,270,3],[271,1,271,3],[274,1,275,1],[274,5,275,8],[282,1,282,3],[283,1,283,3],[286,1,287,1],[286,5,287,8],[47,1,47,3],[51,1,52,1],[51,5,52,8],[59,1,59,3],[60,1,60,3],[63,1,64,1],[208,1,208,3],[209,1,209,3],[212,1,213,1],[212,5,213,8],[220,1,220,3],[221,1,221,3],[294,1,294,3],[324,5,325,8],[332,1,332,3],[333,1,333,3],[349,1,350,1],[349,5,350,8],[357,1,357,3],[347,1,347,8],[373,5,374,8],[381,1,381,3],[336,1,337,1],[336,5,337,8],[344,1,344,3],[345,1,345,3],[385,5,386,8],[2,5,3,8],[14,1,15,1],[14,5,15,8],[121,1,121,3],[122,1,122,3],[125,1,126,1],[125,5,126,8],[298,1,298,8],[83,1,83,3],[84,1,84,3],[87,1,88,1],[87,5,88,8],[75,1,76,1],[75,5,76,8],[95,1,95,3],[174,5,175,8],[182,1,182,3],[200,1,201,1],[200,5,201,8],[162,1,163,1],[162,5,163,8],[158,1,158,3],[159,1,159,3]]}
[null,"Groupe n° 1"]
[]
[{"$f":"B1","v":"Groupe n° 1"},{"$f":"IF('Selection des voies d''éval'!B3=\"\",\"\",'Selection des voies d''éval'!B3)","v":""},"Nom ",{"$f":" IF(ISERROR(  VLOOKUP($B3,Projet,2,FALSE)),\"\", VLOOKUP($B3,Projet,2,FALSE))","v":""},null,"Evaluation Escalade 3°"]
[null,null,"Prénom",{"$f":" IF(ISERROR(  VLOOKUP($B3,Projet,3,FALSE)),\"\", VLOOKUP($B3,Projet,3,FALSE))","v":""},null,null,null,null,null,null,"Il faut juste imprimer "]
[]
[null,"Voie","Secteur","n° corde","Couleur ","Nombre de dégaines avant relais","Nombre de prises de mains saisies","Nb d'essais supplémentaires","Note / 8"]
[null,"n°1",{"$f":" IF(ISERROR(  VLOOKUP($B3,Projet,4,FALSE)),\"\", VLOOKUP($B3,Projet,4,FALSE))","v":""},{"$f":" IF(ISERROR(  VLOOKUP($B3,Projet,5,FALSE)),\"\", VLOOKUP($B3,Projet,5,FALSE))","v":""},"Toutes les couleurs",{"$f":" IF(ISERROR(   VLOOKUP(D7,deg,2)),\"\",VLOOKUP(D7,deg,2))","v":""}]
[null,"Voie","Secteur","n° corde","Couleur ","Nom","Cotation","Nb d'essais supplémentaires","Note/ 5 + 3"]
[null,"n°2",{"$f":" IF(ISERROR(  VLOOKUP($B3,Projet,4,FALSE)),\"\", VLOOKUP($B3,Projet,4,FALSE))","v":""},{"$f":" IF(ISERROR(  VLOOKUP($B3,Projet,5,FALSE)),\"\", VLOOKUP($B3,Projet,5,FALSE))","v":""},{"$f":" IF(ISERROR(  VLOOKUP($B3,Projet,6,FALSE)),\"\", VLOOKUP($B3,Projet,6,FALSE))","v":""},{"$f":" IF(ISERROR(  VLOOKUP($B3,Projet,7,FALSE)),\"\", VLOOKUP($B3,Projet,7,FALSE))","v":""},{"$f":" IF(ISERROR(  VLOOKUP($B3,Projet,8,FALSE)),\"\", VLOOKUP($B3,Projet,8,FALSE))","v":""}]
[]
[null,"Nom et prénom du juge n°1"]
[null,"Nom et prénom du juge n°2"]
[]
[]
[{"$f":"B1","v":"Groupe n° 1"},{"$f":"IF('Selection des voies d''éval'!B4=\"\",\"\",'Selection des voies d''éval'!B4)","v":""},"Nom ",{"$f":" IF(ISERROR(  VLOOKUP($B15,Projet,2,FALSE)),\"\", VLOOKUP($B15,Projet,2,FALSE))","v":""},null,"Evaluation Escalade 3°"]
[null,null,"Prénom",{"$f":" IF(ISERROR(  VLOOKUP($B15,Projet,3,FALSE)),\"\", VLOOKUP($B15,Projet,3,FALSE))","v":""}]
[]
[null,"Voie","Secteur","n° corde","Couleur ","Nombre de dégaines avant relais","Nombre de prises de mains saisies","Nb d'essais supplémentaires","Note / 8"]
[null,"n°1",{"$f":" IF(ISERROR(  VLOOKUP($B15,Projet,4,FALSE)),\"\", VLOOKUP($B15,Projet,4,FALSE))","v":""},{"$f":" IF(ISERROR(  VLOOKUP($B15,Projet,5,FALSE)),\"\", VLOOKUP($B15,Projet,5,FALSE))","v":""},"Toutes les couleurs",{"$f":" IF(ISERROR(   VLOOKUP(D19,deg,2)),\"\",VLOOKUP(D19,deg,2))","v":""}]
[null,"Voie","Secteur","n° corde","Couleur ","Nom","Cotation","Nb d'essais supplémentaires","Note/ 5 + 3"]
[null,"n°2",{"$f":" IF(ISERROR(  VLOOKUP($B15,Projet,4,FALSE)),\"\", VLOOKUP($B15,Projet,4,FALSE))","v":""},{"$f":" IF(ISERROR(  VLOOKUP($B15,Projet,5,FALSE)),\"\", VLOOKUP($B15,Projet,5,FALSE))","v":""},{"$f":" IF(ISERROR(  VLOOKUP($B15,Projet,6,FALSE)),\"\", VLOOKUP($B15,Projet,6,FALSE))","v":""},{"$f":" IF(ISERROR(  VLOOKUP($B15,Projet,7,FALSE)),\"\", VLOOKUP($B15,Projet,7,FALSE))","v":""},{"$f":" IF(ISERROR(  VLOOKUP($B15,Projet,8,FALSE)),\"\", VLOOKUP($B15,Projet,8,FALSE))","v":""}]
[]
[null,"Nom et prénom du juge n°1"]
[null,"Nom et prénom du juge n°2"]
[]
[]
[{"$f":"B1","v":"Groupe n° 1"},{"$f":"IF('Selection des voies d''éval'!B5=\"\",\"\",'Selection des voies d''éval'!B5)","v":""},"Nom ",{"$f":" IF(ISERROR(  VLOOKUP($B27,Projet,2,FALSE)),\"\", VLOOKUP($B27,Projet,2,FALSE))","v":""},null,"Evaluation Escalade 3°"]
[null,null,"Prénom",{"$f":" IF(ISERROR(  VLOOKUP($B27,Projet,3,FALSE)),\"\", VLOOKUP($B27,Projet,3,FALSE))","v":""}]
[]
[null,"Voie","Secteur","n° corde","Couleur ","Nombre de dégaines avant relais","Nombre de prises de mains saisies","Nb d'essais supplémentaires","Note / 8"]
[null,"n°1",{"$f":" IF(ISERROR(  VLOOKUP($B27,Projet,4,FALSE)),\"\", VLOOKUP($B27,Projet,4,FALSE))","v":""},{"$f":" IF(ISERROR(  VLOOKUP($B27,Projet,5,FALSE)),\"\", VLOOKUP($B27,Projet,5,FALSE))","v":""},"Toutes les couleurs",{"$f":" IF(ISERROR(   VLOOKUP(D31,deg,2)),\"\",VLOOKUP(D31,deg,2))","v":""}]
[null,"Voie","Secteur","n° corde","Couleur ","Nom","Cotation","Nb d'essais supplémentaires","Note/ 5 + 3"]
[null,"n°2",{"$f":" IF(ISERROR(  VLOOKUP($B27,Projet,4,FALSE)),\"\", VLOOKUP($B27,Projet,4,FALSE))","v":""},{"$f":" IF(ISERROR(  VLOOKUP($B27,Projet,5,FALSE)),\"\", VLOOKUP($B27,Projet,5,FALSE))","v":""},{"$f":" IF(ISERROR(  VLOOKUP($B27,Projet,6,FALSE)),\"\", VLOOKUP($B27,Projet,6,FALSE))","v":""},{"$f":" IF(ISERROR(  VLOOKUP($B27,Projet,7,FALSE)),\"\", VLOOKUP($B27,Projet,7,FALSE))","v":""},{"$f":" IF(ISERROR(  VLOOKUP($B27,Projet,8,FALSE)),\"\", VLOOKUP($B27,Projet,8,FALSE))","v":""}]
[]
[null,"Nom et prénom du juge n°1"]
[null,"Nom et prénom du juge n°2"]
[]
[]
[{"$f":"B1","v":"Groupe n° 1"},{"$f":"IF('Selection des voies d''éval'!B6=\"\",\"\",'Selection des voies d''éval'!B6)","v":""},"Nom ",{"$f":" IF(ISERROR(  VLOOKUP($B39,Projet,2,FALSE)),\"\", VLOOKUP($B39,Projet,2,FALSE))","v":""},null,"Evaluation Escalade 3°"]
[null,null,"Prénom",{"$f":" IF(ISERROR(  VLOOKUP($B39,Projet,3,FALSE)),\"\", VLOOKUP($B39,Projet,3,FALSE))","v":""}]
[]
[null,"Voie","Secteur","n° corde","Couleur ","Nombre de dégaines avant relais","Nombre de prises de mains saisies","Nb d'essais supplémentaires","Note / 8"]
[null,"n°1",{"$f":" IF(ISERROR(  VLOOKUP($B39,Projet,4,FALSE)),\"\", VLOOKUP($B39,Projet,4,FALSE))","v":""},{"$f":" IF(ISERROR(  VLOOKUP($B39,Projet,5,FALSE)),\"\", VLOOKUP($B39,Projet,5,FALSE))","v":""},"Toutes les couleurs",{"$f":" IF(ISERROR(   VLOOKUP(D43,deg,2)),\"\",VLOOKUP(D43,deg,2))","v":""}]
[null,"Voie","Secteur","n° corde","Couleur ","Nom","Cotation","Nb d'essais supplémentaires","Note/ 5 + 3"]
[null,"n°2",{"$f":" IF(ISERROR(  VLOOKUP($B39,Projet,4,FALSE)),\"\", VLOOKUP($B39,Projet,4,FALSE))","v":""},{"$f":" IF(ISERROR(  VLOOKUP($B39,Projet,5,FALSE)),\"\", VLOOKUP($B39,Projet,5,FALSE))","v":""},{"$f":" IF(ISERROR(  VLOOKUP($B39,Projet,6,FALSE)),\"\", VLOOKUP($B39,Projet,6,FALSE))","v":""},{"$f":" IF(ISERROR(  VLOOKUP($B39,Projet,7,FALSE)),\"\", VLOOKUP($B39,Projet,7,FALSE))","v":""},{"$f":" IF(ISERROR(  VLOOKUP($B39,Projet,8,FALSE)),\"\", VLOOKUP($B39,Projet,8,FALSE))","v":""}]
[]
[null,"Nom et prénom du juge n°1"]
[null,"Nom et prénom du juge n°2"]
[]
[null,"Groupe n° 2"]
[]
[{"$f":"B50","v":"Groupe n° 2"},{"$f":"IF('Selection des voies d''éval'!B8=\"\",\"\",'Selection des voies d''éval'!B8)","v":""},"Nom ",{"$f":" IF(ISERROR(  VLOOKUP($B52,Projet,2,FALSE)),\"\", VLOOKUP($B52,Projet,2,FALSE))","v":""},null,"Evaluation Escalade 3°"]
[null,null,"Prénom",{"$f":" IF(ISERROR(  VLOOKUP($B52,Projet,3,FALSE)),\"\", VLOOKUP($B52,Projet,3,FALSE))","v":""}]
[]
[null,"Voie","Secteur","n° corde","Couleur ","Nombre de dégaines avant relais","Nombre de prises de mains saisies","Nb d'essais supplémentaires","Note / 8"]
[null,"n°1",{"$f":" IF(ISERROR(  VLOOKUP($B52,Projet,4,FALSE)),\"\", VLOOKUP($B52,Projet,4,FALSE))","v":""},{"$f":" IF(ISERROR(  VLOOKUP($B52,Projet,5,FALSE)),\"\", VLOOKUP($B52,Projet,5,FALSE))","v":""},"Toutes les couleurs",{"$f":" IF(ISERROR(   VLOOKUP(D56,deg,2)),\"\",VLOOKUP(D56,deg,2))","v":""}]
[null,"Voie","Secteur","n° corde","Couleur ","Nom","Cotation","Nb d'essais supplémentaires","Note/ 5 + 3"]
[null,"n°2",{"$f":" IF(ISERROR(  VLOOKUP($B52,Projet,4,FALSE)),\"\", VLOOKUP($B52,Projet,4,FALSE))","v":""},{"$f":" IF(ISERROR(  VLOOKUP($B52,Projet,5,FALSE)),\"\", VLOOKUP($B52,Projet,5,FALSE))","v":""},{"$f":" IF(ISERROR(  VLOOKUP($B52,Projet,6,FALSE)),\"\", VLOOKUP($B52,Projet,6,FALSE))","v":""},{"$f":" IF(ISERROR(  VLOOKUP($B52,Projet,7,FALSE)),\"\", VLOOKUP($B52,Projet,7,FALSE))","v":""},{"$f":" IF(ISERROR(  VLOOKUP($B52,Projet,8,FALSE)),\"\", VLOOKUP($B52,Projet,8,FALSE))","v":""}]
[]
[null,"Nom et prénom du juge n°1"]
[null,"Nom et prénom du juge n°2"]
[]
[]
[{"$f":"B50","v":"Groupe n° 2"},{"$f":"IF('Selection des voies d''éval'!B9=\"\",\"\",'Selection des voies d''éval'!B9)","v":""},"Nom ",{"$f":" IF(ISERROR(  VLOOKUP($B64,Projet,2,FALSE)),\"\", VLOOKUP($B64,Projet,2,FALSE))","v":""},null,"Evaluation Escalade 3°"]
[null,null,"Prénom",{"$f":" IF(ISERROR(  VLOOKUP($B64,Projet,3,FALSE)),\"\", VLOOKUP($B64,Projet,3,FALSE))","v":""}]
[]
[null,"Voie","Secteur","n° corde","Couleur ","Nombre de dégaines avant relais","Nombre de prises de mains saisies","Nb d'essais supplémentaires","Note / 8"]
[null,"n°1",{"$f":" IF(ISERROR(  VLOOKUP($B64,Projet,4,FALSE)),\"\", VLOOKUP($B64,Projet,4,FALSE))","v":""},{"$f":" IF(ISERROR(  VLOOKUP($B64,Projet,5,FALSE)),\"\", VLOOKUP($B64,Projet,5,FALSE))","v":""},"Toutes les couleurs",{"$f":" IF(ISERROR(   VLOOKUP(D68,deg,2)),\"\",VLOOKUP(D68,deg,2))","v":""}]
[null,"Voie","Secteur","n° corde","Couleur ","Nom","Cotation","Nb d'essais supplémentaires","Note/ 5 + 3"]
[null,"n°2",{"$f":" IF(ISERROR(  VLOOKUP($B64,Projet,4,FALSE)),\"\", VLOOKUP($B64,Projet,4,FALSE))","v":""},{"$f":" IF(ISERROR(  VLOOKUP($B64,Projet,5,FALSE)),\"\", VLOOKUP($B64,Projet,5,FALSE))","v":""},{"$f":" IF(ISERROR(  VLOOKUP($B64,Projet,6,FALSE)),\"\", VLOOKUP($B64,Projet,6,FALSE))","v":""},{"$f":" IF(ISERROR(  VLOOKUP($B64,Projet,7,FALSE)),\"\", VLOOKUP($B64,Projet,7,FALSE))","v":""},{"$f":" IF(ISERROR(  VLOOKUP($B64,Projet,8,FALSE)),\"\", VLOOKUP($B64,Projet,8,FALSE))","v":""}]
[]
[null,"Nom et prénom du juge n°1"]
[null,"Nom et prénom du juge n°2"]
[]
[]
[{"$f":"B50","v":"Groupe n° 2"},{"$f":"IF('Selection des voies d''éval'!B10=\"\",\"\",'Selection des voies d''éval'!B10)","v":""},"Nom ",{"$f":" IF(ISERROR(  VLOOKUP($B76,Projet,2,FALSE)),\"\", VLOOKUP($B76,Projet,2,FALSE))","v":""},null,"Evaluation Escalade 3°"]
[null,null,"Prénom",{"$f":" IF(ISERROR(  VLOOKUP($B76,Projet,3,FALSE)),\"\", VLOOKUP($B76,Projet,3,FALSE))","v":""}]
[]
[null,"Voie","Secteur","n° corde","Couleur ","Nombre de dégaines avant relais","Nombre de prises de mains saisies","Nb d'essais supplémentaires","Note / 8"]
[null,"n°1",{"$f":" IF(ISERROR(  VLOOKUP($B76,Projet,4,FALSE)),\"\", VLOOKUP($B76,Projet,4,FALSE))","v":""},{"$f":" IF(ISERROR(  VLOOKUP($B76,Projet,5,FALSE)),\"\", VLOOKUP($B76,Projet,5,FALSE))","v":""},"Toutes les couleurs",{"$f":" IF(ISERROR(   VLOOKUP(D80,deg,2)),\"\",VLOOKUP(D80,deg,2))","v":""}]
[null,"Voie","Secteur","n° corde","Couleur ","Nom","Cotation","Nb d'essais supplémentaires","Note/ 5 + 3"]
[null,"n°2",{"$f":" IF(ISERROR(  VLOOKUP($B76,Projet,4,FALSE)),\"\", VLOOKUP($B76,Projet,4,FALSE))","v":""},{"$f":" IF(ISERROR(  VLOOKUP($B76,Projet,5,FALSE)),\"\", VLOOKUP($B76,Projet,5,FALSE))","v":""},{"$f":" IF(ISERROR(  VLOOKUP($B76,Projet,6,FALSE)),\"\", VLOOKUP($B76,Projet,6,FALSE))","v":""},{"$f":" IF(ISERROR(  VLOOKUP($B76,Projet,7,FALSE)),\"\", VLOOKUP($B76,Projet,7,FALSE))","v":""},{"$f":" IF(ISERROR(  VLOOKUP($B76,Projet,8,FALSE)),\"\", VLOOKUP($B76,Projet,8,FALSE))","v":""}]
[]
[null,"Nom et prénom du juge n°1"]
[null,"Nom et prénom du juge n°2"]
[]
[]
[{"$f":"B50","v":"Groupe n° 2"},{"$f":"IF('Selection des voies d''éval'!B11=\"\",\"\",'Selection des voies d''éval'!B11)","v":""},"Nom ",{"$f":" IF(ISERROR(  VLOOKUP($B88,Projet,2,FALSE)),\"\", VLOOKUP($B88,Projet,2,FALSE))","v":""},null,"Evaluation Escalade 3°"]
[null,null,"Prénom",{"$f":" IF(ISERROR(  VLOOKUP($B88,Projet,3,FALSE)),\"\", VLOOKUP($B88,Projet,3,FALSE))","v":""}]
[]
[null,"Voie","Secteur","n° corde","Couleur ","Nombre de dégaines avant relais","Nombre de prises de mains saisies","Nb d'essais supplémentaires","Note / 8"]
[null,"n°1",{"$f":" IF(ISERROR(  VLOOKUP($B88,Projet,4,FALSE)),\"\", VLOOKUP($B88,Projet,4,FALSE))","v":""},{"$f":" IF(ISERROR(  VLOOKUP($B88,Projet,5,FALSE)),\"\", VLOOKUP($B88,Projet,5,FALSE))","v":""},"Toutes les couleurs",{"$f":" IF(ISERROR(   VLOOKUP(D92,deg,2)),\"\",VLOOKUP(D92,deg,2))","v":""}]
[null,"Voie","Secteur","n° corde","Couleur ","Nom","Cotation","Nb d'essais supplémentaires","Note/ 5 + 3"]
[null,"n°2",{"$f":" IF(ISERROR(  VLOOKUP($B88,Projet,4,FALSE)),\"\", VLOOKUP($B88,Projet,4,FALSE))","v":""},{"$f":" IF(ISERROR(  VLOOKUP($B88,Projet,5,FALSE)),\"\", VLOOKUP($B88,Projet,5,FALSE))","v":""},{"$f":" IF(ISERROR(  VLOOKUP($B88,Projet,6,FALSE)),\"\", VLOOKUP($B88,Projet,6,FALSE))","v":""},{"$f":" IF(ISERROR(  VLOOKUP($B88,Projet,7,FALSE)),\"\", VLOOKUP($B88,Projet,7,FALSE))","v":""},{"$f":" IF(ISERROR(  VLOOKUP($B88,Projet,8,FALSE)),\"\", VLOOKUP($B88,Projet,8,FALSE))","v":""}]
[]
[null,"Nom et prénom du juge n°1"]
[null,"Nom et prénom du juge n°2"]
[]
[]
[null,"Groupe n° 3"]
[]
[{"$f":"B100","v":"Groupe n° 3"},{"$f":"IF('Selection des voies d''éval'!B13=\"\",\"\",'Selection des voies d''éval'!B13)","v":""},"Nom ",{"$f":" IF(ISERROR(  VLOOKUP($B102,Projet,2,FALSE)),\"\", VLOOKUP($B102,Projet,2,FALSE))","v":""},null,"Evaluation Escalade 3°"]
[null,null,"Prénom",{"$f":" IF(ISERROR(  VLOOKUP($B102,Projet,3,FALSE)),\"\", VLOOKUP($B102,Projet,3,FALSE))","v":""}]
[]
[null,"Voie","Secteur","n° corde","Couleur ","Nombre de dégaines avant relais","Nombre de prises de mains saisies","Nb d'essais supplémentaires","Note / 8"]
[null,"n°1",{"$f":" IF(ISERROR(  VLOOKUP($B102,Projet,4,FALSE)),\"\", VLOOKUP($B102,Projet,4,FALSE))","v":""},{"$f":" IF(ISERROR(  VLOOKUP($B102,Projet,5,FALSE)),\"\", VLOOKUP($B102,Projet,5,FALSE))","v":""},"Toutes les couleurs",{"$f":" IF(ISERROR(   VLOOKUP(D106,deg,2)),\"\",VLOOKUP(D106,deg,2))","v":""}]
[null,"Voie","Secteur","n° corde","Couleur ","Nom","Cotation","Nb d'essais supplémentaires","Note/ 5 + 3"]
[null,"n°2",{"$f":" IF(ISERROR(  VLOOKUP($B102,Projet,4,FALSE)),\"\", VLOOKUP($B102,Projet,4,FALSE))","v":""},{"$f":" IF(ISERROR(  VLOOKUP($B102,Projet,5,FALSE)),\"\", VLOOKUP($B102,Projet,5,FALSE))","v":""},{"$f":" IF(ISERROR(  VLOOKUP($B102,Projet,6,FALSE)),\"\", VLOOKUP($B102,Projet,6,FALSE))","v":""},{"$f":" IF(ISERROR(  VLOOKUP($B102,Projet,7,FALSE)),\"\", VLOOKUP($B102,Projet,7,FALSE))","v":""},{"$f":" IF(ISERROR(  VLOOKUP($B102,Projet,8,FALSE)),\"\", VLOOKUP($B102,Projet,8,FALSE))","v":""}]
[]
[null,"Nom et prénom du juge n°1"]
[null,"Nom et prénom du juge n°2"]
[]
[]
[{"$f":"B100","v":"Groupe n° 3"},{"$f":"IF('Selection des voies d''éval'!B14=\"\",\"\",'Selection des voies d''éval'!B14)","v":""},"Nom ",{"$f":" IF(ISERROR(  VLOOKUP($B114,Projet,2,FALSE)),\"\", VLOOKUP($B114,Projet,2,FALSE))","v":""},null,"Evaluation Escalade 3°"]
[null,null,"Prénom",{"$f":" IF(ISERROR(  VLOOKUP($B114,Projet,3,FALSE)),\"\", VLOOKUP($B114,Projet,3,FALSE))","v":""}]
[]
[null,"Voie","Secteur","n° corde","Couleur ","Nombre de dégaines avant relais","Nombre de prises de mains saisies","Nb d'essais supplémentaires","Note / 8"]
[null,"n°1",{"$f":" IF(ISERROR(  VLOOKUP($B114,Projet,4,FALSE)),\"\", VLOOKUP($B114,Projet,4,FALSE))","v":""},{"$f":" IF(ISERROR(  VLOOKUP($B114,Projet,5,FALSE)),\"\", VLOOKUP($B114,Projet,5,FALSE))","v":""},"Toutes les couleurs",{"$f":" IF(ISERROR(   VLOOKUP(D118,deg,2)),\"\",VLOOKUP(D118,deg,2))","v":""}]
[null,"Voie","Secteur","n° corde","Couleur ","Nom","Cotation","Nb d'essais supplémentaires","Note/ 5 + 3"]
[null,"n°2",{"$f":" IF(ISERROR(  VLOOKUP($B114,Projet,4,FALSE)),\"\", VLOOKUP($B114,Projet,4,FALSE))","v":""},{"$f":" IF(ISERROR(  VLOOKUP($B114,Projet,5,FALSE)),\"\", VLOOKUP($B114,Projet,5,FALSE))","v":""},{"$f":" IF(ISERROR(  VLOOKUP($B114,Projet,6,FALSE)),\"\", VLOOKUP($B114,Projet,6,FALSE))","v":""},{"$f":" IF(ISERROR(  VLOOKUP($B114,Projet,7,FALSE)),\"\", VLOOKUP($B114,Projet,7,FALSE))","v":""},{"$f":" IF(ISERROR(  VLOOKUP($B114,Projet,8,FALSE)),\"\", VLOOKUP($B114,Projet,8,FALSE))","v":""}]
[]
[null,"Nom et prénom du juge n°1"]
[null,"Nom et prénom du juge n°2"]
[]
[]
[{"$f":"B100","v":"Groupe n° 3"},{"$f":"IF('Selection des voies d''éval'!B15=\"\",\"\",'Selection des voies d''éval'!B15)","v":""},"Nom ",{"$f":" IF(ISERROR(  VLOOKUP($B126,Projet,2,FALSE)),\"\", VLOOKUP($B126,Projet,2,FALSE))","v":""},null,"Evaluation Escalade 3°"]
[null,null,"Prénom",{"$f":" IF(ISERROR(  VLOOKUP($B126,Projet,3,FALSE)),\"\", VLOOKUP($B126,Projet,3,FALSE))","v":""}]
[]
[null,"Voie","Secteur","n° corde","Couleur ","Nombre de dégaines avant relais","Nombre de prises de mains saisies","Nb d'essais supplémentaires","Note / 8"]
[null,"n°1",{"$f":" IF(ISERROR(  VLOOKUP($B126,Projet,4,FALSE)),\"\", VLOOKUP($B126,Projet,4,FALSE))","v":""},{"$f":" IF(ISERROR(  VLOOKUP($B126,Projet,5,FALSE)),\"\", VLOOKUP($B126,Projet,5,FALSE))","v":""},"Toutes les couleurs",{"$f":" IF(ISERROR(   VLOOKUP(D130,deg,2)),\"\",VLOOKUP(D130,deg,2))","v":""}]
[null,"Voie","Secteur","n° corde","Couleur ","Nom","Cotation","Nb d'essais supplémentaires","Note/ 5 + 3"]
[null,"n°2",{"$f":" IF(ISERROR(  VLOOKUP($B126,Projet,4,FALSE)),\"\", VLOOKUP($B126,Projet,4,FALSE))","v":""},{"$f":" IF(ISERROR(  VLOOKUP($B126,Projet,5,FALSE)),\"\", VLOOKUP($B126,Projet,5,FALSE))","v":""},{"$f":" IF(ISERROR(  VLOOKUP($B126,Projet,6,FALSE)),\"\", VLOOKUP($B126,Projet,6,FALSE))","v":""},{"$f":" IF(ISERROR(  VLOOKUP($B126,Projet,7,FALSE)),\"\", VLOOKUP($B126,Projet,7,FALSE))","v":""},{"$f":" IF(ISERROR(  VLOOKUP($B126,Projet,8,FALSE)),\"\", VLOOKUP($B126,Projet,8,FALSE))","v":""}]
[]
[null,"Nom et prénom du juge n°1"]
[null,"Nom et prénom du juge n°2"]
[]
[]
[{"$f":"B100","v":"Groupe n° 3"},{"$f":"IF('Selection des voies d''éval'!B16=\"\",\"\",'Selection des voies d''éval'!B16)","v":""},"Nom ",{"$f":" IF(ISERROR(  VLOOKUP($B138,Projet,2,FALSE)),\"\", VLOOKUP($B138,Projet,2,FALSE))","v":""},null,"Evaluation Escalade 3°"]
[null,null,"Prénom",{"$f":" IF(ISERROR(  VLOOKUP($B138,Projet,3,FALSE)),\"\", VLOOKUP($B138,Projet,3,FALSE))","v":""}]
[]
[null,"Voie","Secteur","n° corde","Couleur ","Nombre de dégaines avant relais","Nombre de prises de mains saisies","Nb d'essais supplémentaires","Note / 8"]
[null,"n°1",{"$f":" IF(ISERROR(  VLOOKUP($B138,Projet,4,FALSE)),\"\", VLOOKUP($B138,Projet,4,FALSE))","v":""},{"$f":" IF(ISERROR(  VLOOKUP($B138,Projet,5,FALSE)),\"\", VLOOKUP($B138,Projet,5,FALSE))","v":""},"Toutes les couleurs",{"$f":" IF(ISERROR(   VLOOKUP(D142,deg,2)),\"\",VLOOKUP(D142,deg,2))","v":""}]
[null,"Voie","Secteur","n° corde","Couleur ","Nom","Cotation","Nb d'essais supplémentaires","Note/ 5 + 3"]
[null,"n°2",{"$f":" IF(ISERROR(  VLOOKUP($B138,Projet,4,FALSE)),\"\", VLOOKUP($B138,Projet,4,FALSE))","v":""},{"$f":" IF(ISERROR(  VLOOKUP($B138,Projet,5,FALSE)),\"\", VLOOKUP($B138,Projet,5,FALSE))","v":""},{"$f":" IF(ISERROR(  VLOOKUP($B138,Projet,6,FALSE)),\"\", VLOOKUP($B138,Projet,6,FALSE))","v":""},{"$f":" IF(ISERROR(  VLOOKUP($B138,Projet,7,FALSE)),\"\", VLOOKUP($B138,Projet,7,FALSE))","v":""},{"$f":" IF(ISERROR(  VLOOKUP($B138,Projet,8,FALSE)),\"\", VLOOKUP($B138,Projet,8,FALSE))","v":""}]
[]
[null,"Nom et prénom du juge n°1"]
[null,"Nom et prénom du juge n°2"]
[]
[null,"Groupe n° 4"]
[]
[{"$f":"B149","v":"Groupe n° 4"},{"$f":"IF('Selection des voies d''éval'!B18=\"\",\"\",'Selection des voies d''éval'!B18)","v":""},"Nom ",{"$f":" IF(ISERROR(  VLOOKUP($B151,Projet,2,FALSE)),\"\", VLOOKUP($B151,Projet,2,FALSE))","v":""},null,"Evaluation Escalade 3°"]
[null,null,"Prénom",{"$f":" IF(ISERROR(  VLOOKUP($B151,Projet,3,FALSE)),\"\", VLOOKUP($B151,Projet,3,FALSE))","v":""}]
[]
[null,"Voie","Secteur","n° corde","Couleur ","Nombre de dégaines avant relais","Nombre de prises de mains saisies","Nb d'essais supplémentaires","Note / 8"]
[null,"n°1",{"$f":" IF(ISERROR(  VLOOKUP($B151,Projet,4,FALSE)),\"\", VLOOKUP($B151,Projet,4,FALSE))","v":""},{"$f":" IF(ISERROR(  VLOOKUP($B151,Projet,5,FALSE)),\"\", VLOOKUP($B151,Projet,5,FALSE))","v":""},"Toutes les couleurs",{"$f":" IF(ISERROR(   VLOOKUP(D155,deg,2)),\"\",VLOOKUP(D155,deg,2))","v":""}]
[null,"Voie","Secteur","n° corde","Couleur ","Nom","Cotation","Nb d'essais supplémentaires","Note/ 5 + 3"]
[null,"n°2",{"$f":" IF(ISERROR(  VLOOKUP($B151,Projet,4,FALSE)),\"\", VLOOKUP($B151,Projet,4,FALSE))","v":""},{"$f":" IF(ISERROR(  VLOOKUP($B151,Projet,5,FALSE)),\"\", VLOOKUP($B151,Projet,5,FALSE))","v":""},{"$f":" IF(ISERROR(  VLOOKUP($B151,Projet,6,FALSE)),\"\", VLOOKUP($B151,Projet,6,FALSE))","v":""},{"$f":" IF(ISERROR(  VLOOKUP($B151,Projet,7,FALSE)),\"\", VLOOKUP($B151,Projet,7,FALSE))","v":""},{"$f":" IF(ISERROR(  VLOOKUP($B151,Projet,8,FALSE)),\"\", VLOOKUP($B151,Projet,8,FALSE))","v":""}]
[]
[null,"Nom et prénom du juge n°1"]
[null,"Nom et prénom du juge n°2"]
[]
[]
[{"$f":"B149","v":"Groupe n° 4"},{"$f":"IF('Selection des voies d''éval'!B19=\"\",\"\",'Selection des voies d''éval'!B19)","v":""},"Nom ",{"$f":" IF(ISERROR(  VLOOKUP($B163,Projet,2,FALSE)),\"\", VLOOKUP($B163,Projet,2,FALSE))","v":""},null,"Evaluation Escalade 3°"]
[null,null,"Prénom",{"$f":" IF(ISERROR(  VLOOKUP($B163,Projet,3,FALSE)),\"\", VLOOKUP($B163,Projet,3,FALSE))","v":""}]
[]
[null,"Voie","Secteur","n° corde","Couleur ","Nombre de dégaines avant relais","Nombre de prises de mains saisies","Nb d'essais supplémentaires","Note / 8"]
[null,"n°1",{"$f":" IF(ISERROR(  VLOOKUP($B163,Projet,4,FALSE)),\"\", VLOOKUP($B163,Projet,4,FALSE))","v":""},{"$f":" IF(ISERROR(  VLOOKUP($B163,Projet,5,FALSE)),\"\", VLOOKUP($B163,Projet,5,FALSE))","v":""},"Toutes les couleurs",{"$f":" IF(ISERROR(   VLOOKUP(D167,deg,2)),\"\",VLOOKUP(D167,deg,2))","v":""}]
[null,"Voie","Secteur","n° corde","Couleur ","Nom","Cotation","Nb d'essais supplémentaires","Note/ 5 + 3"]
[null,"n°2",{"$f":" IF(ISERROR(  VLOOKUP($B163,Projet,4,FALSE)),\"\", VLOOKUP($B163,Projet,4,FALSE))","v":""},{"$f":" IF(ISERROR(  VLOOKUP($B163,Projet,5,FALSE)),\"\", VLOOKUP($B163,Projet,5,FALSE))","v":""},{"$f":" IF(ISERROR(  VLOOKUP($B163,Projet,6,FALSE)),\"\", VLOOKUP($B163,Projet,6,FALSE))","v":""},{"$f":" IF(ISERROR(  VLOOKUP($B163,Projet,7,FALSE)),\"\", VLOOKUP($B163,Projet,7,FALSE))","v":""},{"$f":" IF(ISERROR(  VLOOKUP($B163,Projet,8,FALSE)),\"\", VLOOKUP($B163,Projet,8,FALSE))","v":""}]
[]
[null,"Nom et prénom du juge n°1"]
[null,"Nom et prénom du juge n°2"]
[]
[]
[{"$f":"B149","v":"Groupe n° 4"},{"$f":"IF('Selection des voies d''éval'!B20=\"\",\"\",'Selection des voies d''éval'!B20)","v":""},"Nom ",{"$f":" IF(ISERROR(  VLOOKUP($B175,Projet,2,FALSE)),\"\", VLOOKUP($B175,Projet,2,FALSE))","v":""},null,"Evaluation Escalade 3°"]
[null,null,"Prénom",{"$f":" IF(ISERROR(  VLOOKUP($B175,Projet,3,FALSE)),\"\", VLOOKUP($B175,Projet,3,FALSE))","v":""}]
[]
[null,"Voie","Secteur","n° corde","Couleur ","Nombre de dégaines avant relais","Nombre de prises de mains saisies","Nb d'essais supplémentaires","Note / 8"]
[null,"n°1",{"$f":" IF(ISERROR(  VLOOKUP($B175,Projet,4,FALSE)),\"\", VLOOKUP($B175,Projet,4,FALSE))","v":""},{"$f":" IF(ISERROR(  VLOOKUP($B175,Projet,5,FALSE)),\"\", VLOOKUP($B175,Projet,5,FALSE))","v":""},"Toutes les couleurs",{"$f":" IF(ISERROR(   VLOOKUP(D179,deg,2)),\"\",VLOOKUP(D179,deg,2))","v":""}]
[null,"Voie","Secteur","n° corde","Couleur ","Nom","Cotation","Nb d'essais supplémentaires","Note/ 5 + 3"]
[null,"n°2",{"$f":" IF(ISERROR(  VLOOKUP($B175,Projet,4,FALSE)),\"\", VLOOKUP($B175,Projet,4,FALSE))","v":""},{"$f":" IF(ISERROR(  VLOOKUP($B175,Projet,5,FALSE)),\"\", VLOOKUP($B175,Projet,5,FALSE))","v":""},{"$f":" IF(ISERROR(  VLOOKUP($B175,Projet,6,FALSE)),\"\", VLOOKUP($B175,Projet,6,FALSE))","v":""},{"$f":" IF(ISERROR(  VLOOKUP($B175,Projet,7,FALSE)),\"\", VLOOKUP($B175,Projet,7,FALSE))","v":""},{"$f":" IF(ISERROR(  VLOOKUP($B175,Projet,8,FALSE)),\"\", VLOOKUP($B175,Projet,8,FALSE))","v":""}]
[]
[null,"Nom et prénom du juge n°1"]
[null,"Nom et prénom du juge n°2"]
[]
[]
[{"$f":"B149","v":"Groupe n° 4"},{"$f":"IF('Selection des voies d''éval'!B21=\"\",\"\",'Selection des voies d''éval'!B21)","v":""},"Nom ",{"$f":" IF(ISERROR(  VLOOKUP($B187,Projet,2,FALSE)),\"\", VLOOKUP($B187,Projet,2,FALSE))","v":""},null,"Evaluation Escalade 3°"]
[null,null,"Prénom",{"$f":" IF(ISERROR(  VLOOKUP($B187,Projet,3,FALSE)),\"\", VLOOKUP($B187,Projet,3,FALSE))","v":""}]
[]
[null,"Voie","Secteur","n° corde","Couleur ","Nombre de dégaines avant relais","Nombre de prises de mains saisies","Nb d'essais supplémentaires","Note / 8"]
[null,"n°1",{"$f":" IF(ISERROR(  VLOOKUP($B187,Projet,4,FALSE)),\"\", VLOOKUP($B187,Projet,4,FALSE))","v":""},{"$f":" IF(ISERROR(  VLOOKUP($B187,Projet,5,FALSE)),\"\", VLOOKUP($B187,Projet,5,FALSE))","v":""},"Toutes les couleurs",{"$f":" IF(ISERROR(   VLOOKUP(D191,deg,2)),\"\",VLOOKUP(D191,deg,2))","v":""}]
[null,"Voie","Secteur","n° corde","Couleur ","Nom","Cotation","Nb d'essais supplémentaires","Note/ 5 + 3"]
[null,"n°2",{"$f":" IF(ISERROR(  VLOOKUP($B187,Projet,4,FALSE)),\"\", VLOOKUP($B187,Projet,4,FALSE))","v":""},{"$f":" IF(ISERROR(  VLOOKUP($B187,Projet,5,FALSE)),\"\", VLOOKUP($B187,Projet,5,FALSE))","v":""},{"$f":" IF(ISERROR(  VLOOKUP($B187,Projet,6,FALSE)),\"\", VLOOKUP($B187,Projet,6,FALSE))","v":""},{"$f":" IF(ISERROR(  VLOOKUP($B187,Projet,7,FALSE)),\"\", VLOOKUP($B187,Projet,7,FALSE))","v":""},{"$f":" IF(ISERROR(  VLOOKUP($B187,Projet,8,FALSE)),\"\", VLOOKUP($B187,Projet,8,FALSE))","v":""}]
[]
[null,"Nom et prénom du juge n°1"]
[null,"Nom et prénom du juge n°2"]
[]
[]
[null,"Groupe n° 5"]
[]
[{"$f":"B199","v":"Groupe n° 5"},{"$f":"IF('Selection des voies d''éval'!B23=\"\",\"\",'Selection des voies d''éval'!B23)","v":""},"Nom ",{"$f":" IF(ISERROR(  VLOOKUP($B201,Projet,2,FALSE)),\"\", VLOOKUP($B201,Projet,2,FALSE))","v":""},null,"Evaluation Escalade 3°"]
[null,null,"Prénom",{"$f":" IF(ISERROR(  VLOOKUP($B201,Projet,3,FALSE)),\"\", VLOOKUP($B201,Projet,3,FALSE))","v":""}]
[]
[null,"Voie","Secteur","n° corde","Couleur ","Nombre de dégaines avant relais","Nombre de prises de mains saisies","Nb d'essais supplémentaires","Note / 8"]
[null,"n°1",{"$f":" IF(ISERROR(  VLOOKUP($B201,Projet,4,FALSE)),\"\", VLOOKUP($B201,Projet,4,FALSE))","v":""},{"$f":" IF(ISERROR(  VLOOKUP($B201,Projet,5,FALSE)),\"\", VLOOKUP($B201,Projet,5,FALSE))","v":""},"Toutes les couleurs",{"$f":" IF(ISERROR(   VLOOKUP(D205,deg,2)),\"\",VLOOKUP(D205,deg,2))","v":""}]
[null,"Voie","Secteur","n° corde","Couleur ","Nom","Cotation","Nb d'essais supplémentaires","Note/ 5 + 3"]
[null,"n°2",{"$f":" IF(ISERROR(  VLOOKUP($B201,Projet,4,FALSE)),\"\", VLOOKUP($B201,Projet,4,FALSE))","v":""},{"$f":" IF(ISERROR(  VLOOKUP($B201,Projet,5,FALSE)),\"\", VLOOKUP($B201,Projet,5,FALSE))","v":""},{"$f":" IF(ISERROR(  VLOOKUP($B201,Projet,6,FALSE)),\"\", VLOOKUP($B201,Projet,6,FALSE))","v":""},{"$f":" IF(ISERROR(  VLOOKUP($B201,Projet,7,FALSE)),\"\", VLOOKUP($B201,Projet,7,FALSE))","v":""},{"$f":" IF(ISERROR(  VLOOKUP($B201,Projet,8,FALSE)),\"\", VLOOKUP($B201,Projet,8,FALSE))","v":""}]
[]
[null,"Nom et prénom du juge n°1"]
[null,"Nom et prénom du juge n°2"]
[]
[]
[{"$f":"B199","v":"Groupe n° 5"},{"$f":"IF('Selection des voies d''éval'!B24=\"\",\"\",'Selection des voies d''éval'!B24)","v":""},"Nom ",{"$f":" IF(ISERROR(  VLOOKUP($B213,Projet,2,FALSE)),\"\", VLOOKUP($B213,Projet,2,FALSE))","v":""},null,"Evaluation Escalade 3°"]
[null,null,"Prénom",{"$f":" IF(ISERROR(  VLOOKUP($B213,Projet,3,FALSE)),\"\", VLOOKUP($B213,Projet,3,FALSE))","v":""}]
[]
[null,"Voie","Secteur","n° corde","Couleur ","Nombre de dégaines avant relais","Nombre de prises de mains saisies","Nb d'essais supplémentaires","Note / 8"]
[null,"n°1",{"$f":" IF(ISERROR(  VLOOKUP($B213,Projet,4,FALSE)),\"\", VLOOKUP($B213,Projet,4,FALSE))","v":""},{"$f":" IF(ISERROR(  VLOOKUP($B213,Projet,5,FALSE)),\"\", VLOOKUP($B213,Projet,5,FALSE))","v":""},"Toutes les couleurs",{"$f":" IF(ISERROR(   VLOOKUP(D217,deg,2)),\"\",VLOOKUP(D217,deg,2))","v":""}]
[null,"Voie","Secteur","n° corde","Couleur ","Nom","Cotation","Nb d'essais supplémentaires","Note/ 5 + 3"]
[null,"n°2",{"$f":" IF(ISERROR(  VLOOKUP($B213,Projet,4,FALSE)),\"\", VLOOKUP($B213,Projet,4,FALSE))","v":""},{"$f":" IF(ISERROR(  VLOOKUP($B213,Projet,5,FALSE)),\"\", VLOOKUP($B213,Projet,5,FALSE))","v":""},{"$f":" IF(ISERROR(  VLOOKUP($B213,Projet,6,FALSE)),\"\", VLOOKUP($B213,Projet,6,FALSE))","v":""},{"$f":" IF(ISERROR(  VLOOKUP($B213,Projet,7,FALSE)),\"\", VLOOKUP($B213,Projet,7,FALSE))","v":""},{"$f":" IF(ISERROR(  VLOOKUP($B213,Projet,8,FALSE)),\"\", VLOOKUP($B213,Projet,8,FALSE))","v":""}]
[]
[null,"Nom et prénom du juge n°1"]
[null,"Nom et prénom du juge n°2"]
[]
[]
[{"$f":"B199","v":"Groupe n° 5"},{"$f":"IF('Selection des voies d''éval'!B25=\"\",\"\",'Selection des voies d''éval'!B25)","v":""},"Nom ",{"$f":" IF(ISERROR(  VLOOKUP($B225,Projet,2,FALSE)),\"\", VLOOKUP($B225,Projet,2,FALSE))","v":""},null,"Evaluation Escalade 3°"]
[null,null,"Prénom",{"$f":" IF(ISERROR(  VLOOKUP($B225,Projet,3,FALSE)),\"\", VLOOKUP($B225,Projet,3,FALSE))","v":""}]
[]
[null,"Voie","Secteur","n° corde","Couleur ","Nombre de dégaines avant relais","Nombre de prises de mains saisies","Nb d'essais supplémentaires","Note / 8"]
[null,"n°1",{"$f":" IF(ISERROR(  VLOOKUP($B225,Projet,4,FALSE)),\"\", VLOOKUP($B225,Projet,4,FALSE))","v":""},{"$f":" IF(ISERROR(  VLOOKUP($B225,Projet,5,FALSE)),\"\", VLOOKUP($B225,Projet,5,FALSE))","v":""},"Toutes les couleurs",{"$f":" IF(ISERROR(   VLOOKUP(D229,deg,2)),\"\",VLOOKUP(D229,deg,2))","v":""}]
[null,"Voie","Secteur","n° corde","Couleur ","Nom","Cotation","Nb d'essais supplémentaires","Note/ 5 + 3"]
[null,"n°2",{"$f":" IF(ISERROR(  VLOOKUP($B225,Projet,4,FALSE)),\"\", VLOOKUP($B225,Projet,4,FALSE))","v":""},{"$f":" IF(ISERROR(  VLOOKUP($B225,Projet,5,FALSE)),\"\", VLOOKUP($B225,Projet,5,FALSE))","v":""},{"$f":" IF(ISERROR(  VLOOKUP($B225,Projet,6,FALSE)),\"\", VLOOKUP($B225,Projet,6,FALSE))","v":""},{"$f":" IF(ISERROR(  VLOOKUP($B225,Projet,7,FALSE)),\"\", VLOOKUP($B225,Projet,7,FALSE))","v":""},{"$f":" IF(ISERROR(  VLOOKUP($B225,Projet,8,FALSE)),\"\", VLOOKUP($B225,Projet,8,FALSE))","v":""}]
[]
[null,"Nom et prénom du juge n°1"]
[null,"Nom et prénom du juge n°2"]
[]
[]
[{"$f":"B199","v":"Groupe n° 5"},{"$f":"IF('Selection des voies d''éval'!B26=\"\",\"\",'Selection des voies d''éval'!B26)","v":""},"Nom ",{"$f":" IF(ISERROR(  VLOOKUP($B237,Projet,2,FALSE)),\"\", VLOOKUP($B237,Projet,2,FALSE))","v":""},null,"Evaluation Escalade 3°"]
[null,null,"Prénom",{"$f":" IF(ISERROR(  VLOOKUP($B237,Projet,3,FALSE)),\"\", VLOOKUP($B237,Projet,3,FALSE))","v":""}]
[]
[null,"Voie","Secteur","n° corde","Couleur ","Nombre de dégaines avant relais","Nombre de prises de mains saisies","Nb d'essais supplémentaires","Note / 8"]
[null,"n°1",{"$f":" IF(ISERROR(  VLOOKUP($B237,Projet,4,FALSE)),\"\", VLOOKUP($B237,Projet,4,FALSE))","v":""},{"$f":" IF(ISERROR(  VLOOKUP($B237,Projet,5,FALSE)),\"\", VLOOKUP($B237,Projet,5,FALSE))","v":""},"Toutes les couleurs",{"$f":" IF(ISERROR(   VLOOKUP(D241,deg,2)),\"\",VLOOKUP(D241,deg,2))","v":""}]
[null,"Voie","Secteur","n° corde","Couleur ","Nom","Cotation","Nb d'essais supplémentaires","Note/ 5 + 3"]
[null,"n°2",{"$f":" IF(ISERROR(  VLOOKUP($B237,Projet,4,FALSE)),\"\", VLOOKUP($B237,Projet,4,FALSE))","v":""},{"$f":" IF(ISERROR(  VLOOKUP($B237,Projet,5,FALSE)),\"\", VLOOKUP($B237,Projet,5,FALSE))","v":""},{"$f":" IF(ISERROR(  VLOOKUP($B237,Projet,6,FALSE)),\"\", VLOOKUP($B237,Projet,6,FALSE))","v":""},{"$f":" IF(ISERROR(  VLOOKUP($B237,Projet,7,FALSE)),\"\", VLOOKUP($B237,Projet,7,FALSE))","v":""},{"$f":" IF(ISERROR(  VLOOKUP($B237,Projet,8,FALSE)),\"\", VLOOKUP($B237,Projet,8,FALSE))","v":""}]
[]
[null,"Nom et prénom du juge n°1"]
[null,"Nom et prénom du juge n°2"]
[]
[]
[null,"Groupe n° 6"]
[]
[{"$f":"B249","v":"Groupe n° 6"},{"$f":"IF('Selection des voies d''éval'!B28=\"\",\"\",'Selection des voies d''éval'!B28)","v":""},"Nom ",{"$f":" IF(ISERROR(  VLOOKUP($B251,Projet,2,FALSE)),\"\", VLOOKUP($B251,Projet,2,FALSE))","v":""},null,"Evaluation Escalade 3°"]
[null,null,"Prénom",{"$f":" IF(ISERROR(  VLOOKUP($B251,Projet,3,FALSE)),\"\", VLOOKUP($B251,Projet,3,FALSE))","v":""}]
[]
[null,"Voie","Secteur","n° corde","Couleur ","Nombre de dégaines avant relais","Nombre de prises de mains saisies","Nb d'essais supplémentaires","Note / 8"]
[null,"n°1",{"$f":" IF(ISERROR(  VLOOKUP($B251,Projet,4,FALSE)),\"\", VLOOKUP($B251,Projet,4,FALSE))","v":""},{"$f":" IF(ISERROR(  VLOOKUP($B251,Projet,5,FALSE)),\"\", VLOOKUP($B251,Projet,5,FALSE))","v":""},"Toutes les couleurs",{"$f":" IF(ISERROR(   VLOOKUP(D255,deg,2)),\"\",VLOOKUP(D255,deg,2))","v":""}]
[null,"Voie","Secteur","n° corde","Couleur ","Nom","Cotation","Nb d'essais supplémentaires","Note/ 5 + 3"]
[null,"n°2",{"$f":" IF(ISERROR(  VLOOKUP($B251,Projet,4,FALSE)),\"\", VLOOKUP($B251,Projet,4,FALSE))","v":""},{"$f":" IF(ISERROR(  VLOOKUP($B251,Projet,5,FALSE)),\"\", VLOOKUP($B251,Projet,5,FALSE))","v":""},{"$f":" IF(ISERROR(  VLOOKUP($B251,Projet,6,FALSE)),\"\", VLOOKUP($B251,Projet,6,FALSE))","v":""},{"$f":" IF(ISERROR(  VLOOKUP($B251,Projet,7,FALSE)),\"\", VLOOKUP($B251,Projet,7,FALSE))","v":""},{"$f":" IF(ISERROR(  VLOOKUP($B251,Projet,8,FALSE)),\"\", VLOOKUP($B251,Projet,8,FALSE))","v":""}]
[]
[null,"Nom et prénom du juge n°1"]
[null,"Nom et prénom du juge n°2"]
[]
[]
[{"$f":"B249","v":"Groupe n° 6"},{"$f":"IF('Selection des voies d''éval'!B29=\"\",\"\",'Selection des voies d''éval'!B29)","v":""},"Nom ",{"$f":" IF(ISERROR(  VLOOKUP($B263,Projet,2,FALSE)),\"\", VLOOKUP($B263,Projet,2,FALSE))","v":""},null,"Evaluation Escalade 3°"]
[null,null,"Prénom",{"$f":" IF(ISERROR(  VLOOKUP($B263,Projet,3,FALSE)),\"\", VLOOKUP($B263,Projet,3,FALSE))","v":""}]
[]
[null,"Voie","Secteur","n° corde","Couleur ","Nombre de dégaines avant relais","Nombre de prises de mains saisies","Nb d'essais supplémentaires","Note / 8"]
[null,"n°1",{"$f":" IF(ISERROR(  VLOOKUP($B263,Projet,4,FALSE)),\"\", VLOOKUP($B263,Projet,4,FALSE))","v":""},{"$f":" IF(ISERROR(  VLOOKUP($B263,Projet,5,FALSE)),\"\", VLOOKUP($B263,Projet,5,FALSE))","v":""},"Toutes les couleurs",{"$f":" IF(ISERROR(   VLOOKUP(D267,deg,2)),\"\",VLOOKUP(D267,deg,2))","v":""}]
[null,"Voie","Secteur","n° corde","Couleur ","Nom","Cotation","Nb d'essais supplémentaires","Note/ 5 + 3"]
[null,"n°2",{"$f":" IF(ISERROR(  VLOOKUP($B263,Projet,4,FALSE)),\"\", VLOOKUP($B263,Projet,4,FALSE))","v":""},{"$f":" IF(ISERROR(  VLOOKUP($B263,Projet,5,FALSE)),\"\", VLOOKUP($B263,Projet,5,FALSE))","v":""},{"$f":" IF(ISERROR(  VLOOKUP($B263,Projet,6,FALSE)),\"\", VLOOKUP($B263,Projet,6,FALSE))","v":""},{"$f":" IF(ISERROR(  VLOOKUP($B263,Projet,7,FALSE)),\"\", VLOOKUP($B263,Projet,7,FALSE))","v":""},{"$f":" IF(ISERROR(  VLOOKUP($B263,Projet,8,FALSE)),\"\", VLOOKUP($B263,Projet,8,FALSE))","v":""}]
[]
[null,"Nom et prénom du juge n°1"]
[null,"Nom et prénom du juge n°2"]
[]
[]
[{"$f":"B249","v":"Groupe n° 6"},{"$f":"IF('Selection des voies d''éval'!B30=\"\",\"\",'Selection des voies d''éval'!B30)","v":""},"Nom ",{"$f":" IF(ISERROR(  VLOOKUP($B275,Projet,2,FALSE)),\"\", VLOOKUP($B275,Projet,2,FALSE))","v":""},null,"Evaluation Escalade 3°"]
[null,null,"Prénom",{"$f":" IF(ISERROR(  VLOOKUP($B275,Projet,3,FALSE)),\"\", VLOOKUP($B275,Projet,3,FALSE))","v":""}]
[]
[null,"Voie","Secteur","n° corde","Couleur ","Nombre de dégaines avant relais","Nombre de prises de mains saisies","Nb d'essais supplémentaires","Note / 8"]
[null,"n°1",{"$f":" IF(ISERROR(  VLOOKUP($B275,Projet,4,FALSE)),\"\", VLOOKUP($B275,Projet,4,FALSE))","v":""},{"$f":" IF(ISERROR(  VLOOKUP($B275,Projet,5,FALSE)),\"\", VLOOKUP($B275,Projet,5,FALSE))","v":""},"Toutes les couleurs",{"$f":" IF(ISERROR(   VLOOKUP(D279,deg,2)),\"\",VLOOKUP(D279,deg,2))","v":""}]
[null,"Voie","Secteur","n° corde","Couleur ","Nom","Cotation","Nb d'essais supplémentaires","Note/ 5 + 3"]
[null,"n°2",{"$f":" IF(ISERROR(  VLOOKUP($B275,Projet,4,FALSE)),\"\", VLOOKUP($B275,Projet,4,FALSE))","v":""},{"$f":" IF(ISERROR(  VLOOKUP($B275,Projet,5,FALSE)),\"\", VLOOKUP($B275,Projet,5,FALSE))","v":""},{"$f":" IF(ISERROR(  VLOOKUP($B275,Projet,6,FALSE)),\"\", VLOOKUP($B275,Projet,6,FALSE))","v":""},{"$f":" IF(ISERROR(  VLOOKUP($B275,Projet,7,FALSE)),\"\", VLOOKUP($B275,Projet,7,FALSE))","v":""},{"$f":" IF(ISERROR(  VLOOKUP($B275,Projet,8,FALSE)),\"\", VLOOKUP($B275,Projet,8,FALSE))","v":""}]
[]
[null,"Nom et prénom du juge n°1"]
[null,"Nom et prénom du juge n°2"]
[]
[]
[{"$f":"B249","v":"Groupe n° 6"},{"$f":"IF('Selection des voies d''éval'!B31=\"\",\"\",'Selection des voies d''éval'!B31)","v":""},"Nom ",{"$f":" IF(ISERROR(  VLOOKUP($B287,Projet,2,FALSE)),\"\", VLOOKUP($B287,Projet,2,FALSE))","v":""},null,"Evaluation Escalade 3°"]
[null,null,"Prénom",{"$f":" IF(ISERROR(  VLOOKUP($B287,Projet,3,FALSE)),\"\", VLOOKUP($B287,Projet,3,FALSE))","v":""}]
[]
[null,"Voie","Secteur","n° corde","Couleur ","Nombre de dégaines avant relais","Nombre de prises de mains saisies","Nb d'essais supplémentaires","Note / 8"]
[null,"n°1",{"$f":" IF(ISERROR(  VLOOKUP($B287,Projet,4,FALSE)),\"\", VLOOKUP($B287,Projet,4,FALSE))","v":""},{"$f":" IF(ISERROR(  VLOOKUP($B287,Projet,5,FALSE)),\"\", VLOOKUP($B287,Projet,5,FALSE))","v":""},"Toutes les couleurs",{"$f":" IF(ISERROR(   VLOOKUP(D291,deg,2)),\"\",VLOOKUP(D291,deg,2))","v":""}]
[null,"Voie","Secteur","n° corde","Couleur ","Nom","Cotation","Nb d'essais supplémentaires","Note/ 5 + 3"]
[null,"n°2",{"$f":" IF(ISERROR(  VLOOKUP($B287,Projet,4,FALSE)),\"\", VLOOKUP($B287,Projet,4,FALSE))","v":""},{"$f":" IF(ISERROR(  VLOOKUP($B287,Projet,5,FALSE)),\"\", VLOOKUP($B287,Projet,5,FALSE))","v":""},{"$f":" IF(ISERROR(  VLOOKUP($B287,Projet,6,FALSE)),\"\", VLOOKUP($B287,Projet,6,FALSE))","v":""},{"$f":" IF(ISERROR(  VLOOKUP($B287,Projet,7,FALSE)),\"\", VLOOKUP($B287,Projet,7,FALSE))","v":""},{"$f":" IF(ISERROR(  VLOOKUP($B287,Projet,8,FALSE)),\"\", VLOOKUP($B287,Projet,8,FALSE))","v":""}]
[]
[null,"Nom et prénom du juge n°1"]
[null,"Nom et prénom du juge n°2"]
[]
[]
[null,"Groupe n° 7"]
[]
[{"$f":"B299","v":"Groupe n° 7"},{"$f":"IF('Selection des voies d''éval'!B33=\"\",\"\",'Selection des voies d''éval'!B33)","v":""},"Nom ",{"$f":" IF(ISERROR(  VLOOKUP($B301,Projet,2,FALSE)),\"\", VLOOKUP($B301,Projet,2,FALSE))","v":""},null,"Evaluation Escalade 3°"]
[null,null,"Prénom",{"$f":" IF(ISERROR(  VLOOKUP($B301,Projet,3,FALSE)),\"\", VLOOKUP($B301,Projet,3,FALSE))","v":""}]
[]
[null,"Voie","Secteur","n° corde","Couleur ","Nombre de dégaines avant relais","Nombre de prises de mains saisies","Nb d'essais supplémentaires","Note / 8"]
[null,"n°1",{"$f":" IF(ISERROR(  VLOOKUP($B301,Projet,4,FALSE)),\"\", VLOOKUP($B301,Projet,4,FALSE))","v":""},{"$f":" IF(ISERROR(  VLOOKUP($B301,Projet,5,FALSE)),\"\", VLOOKUP($B301,Projet,5,FALSE))","v":""},"Toutes les couleurs",{"$f":" IF(ISERROR(   VLOOKUP(D305,deg,2)),\"\",VLOOKUP(D305,deg,2))","v":""}]
[null,"Voie","Secteur","n° corde","Couleur ","Nom","Cotation","Nb d'essais supplémentaires","Note/ 5 + 3"]
[null,"n°2",{"$f":" IF(ISERROR(  VLOOKUP($B301,Projet,4,FALSE)),\"\", VLOOKUP($B301,Projet,4,FALSE))","v":""},{"$f":" IF(ISERROR(  VLOOKUP($B301,Projet,5,FALSE)),\"\", VLOOKUP($B301,Projet,5,FALSE))","v":""},{"$f":" IF(ISERROR(  VLOOKUP($B301,Projet,6,FALSE)),\"\", VLOOKUP($B301,Projet,6,FALSE))","v":""},{"$f":" IF(ISERROR(  VLOOKUP($B301,Projet,7,FALSE)),\"\", VLOOKUP($B301,Projet,7,FALSE))","v":""},{"$f":" IF(ISERROR(  VLOOKUP($B301,Projet,8,FALSE)),\"\", VLOOKUP($B301,Projet,8,FALSE))","v":""}]
[]
[null,"Nom et prénom du juge n°1"]
[null,"Nom et prénom du juge n°2"]
[]
[]
[{"$f":"B299","v":"Groupe n° 7"},{"$f":"IF('Selection des voies d''éval'!B34=\"\",\"\",'Selection des voies d''éval'!B34)","v":""},"Nom ",{"$f":" IF(ISERROR(  VLOOKUP($B313,Projet,2,FALSE)),\"\", VLOOKUP($B313,Projet,2,FALSE))","v":""},null,"Evaluation Escalade 3°"]
[null,null,"Prénom",{"$f":" IF(ISERROR(  VLOOKUP($B313,Projet,3,FALSE)),\"\", VLOOKUP($B313,Projet,3,FALSE))","v":""}]
[]
[null,"Voie","Secteur","n° corde","Couleur ","Nombre de dégaines avant relais","Nombre de prises de mains saisies","Nb d'essais supplémentaires","Note / 8"]
[null,"n°1",{"$f":" IF(ISERROR(  VLOOKUP($B313,Projet,4,FALSE)),\"\", VLOOKUP($B313,Projet,4,FALSE))","v":""},{"$f":" IF(ISERROR(  VLOOKUP($B313,Projet,5,FALSE)),\"\", VLOOKUP($B313,Projet,5,FALSE))","v":""},"Toutes les couleurs",{"$f":" IF(ISERROR(   VLOOKUP(D317,deg,2)),\"\",VLOOKUP(D317,deg,2))","v":""}]
[null,"Voie","Secteur","n° corde","Couleur ","Nom","Cotation","Nb d'essais supplémentaires","Note/ 5 + 3"]
[null,"n°2",{"$f":" IF(ISERROR(  VLOOKUP($B313,Projet,4,FALSE)),\"\", VLOOKUP($B313,Projet,4,FALSE))","v":""},{"$f":" IF(ISERROR(  VLOOKUP($B313,Projet,5,FALSE)),\"\", VLOOKUP($B313,Projet,5,FALSE))","v":""},{"$f":" IF(ISERROR(  VLOOKUP($B313,Projet,6,FALSE)),\"\", VLOOKUP($B313,Projet,6,FALSE))","v":""},{"$f":" IF(ISERROR(  VLOOKUP($B313,Projet,7,FALSE)),\"\", VLOOKUP($B313,Projet,7,FALSE))","v":""},{"$f":" IF(ISERROR(  VLOOKUP($B313,Projet,8,FALSE)),\"\", VLOOKUP($B313,Projet,8,FALSE))","v":""}]
[]
[null,"Nom et prénom du juge n°1"]
[null,"Nom et prénom du juge n°2"]
[]
[]
[{"$f":"B299","v":"Groupe n° 7"},{"$f":"IF('Selection des voies d''éval'!B35=\"\",\"\",'Selection des voies d''éval'!B35)","v":""},"Nom ",{"$f":" IF(ISERROR(  VLOOKUP($B325,Projet,2,FALSE)),\"\", VLOOKUP($B325,Projet,2,FALSE))","v":""},null,"Evaluation Escalade 3°"]
[null,null,"Prénom",{"$f":" IF(ISERROR(  VLOOKUP($B325,Projet,3,FALSE)),\"\", VLOOKUP($B325,Projet,3,FALSE))","v":""}]
[]
[null,"Voie","Secteur","n° corde","Couleur ","Nombre de dégaines avant relais","Nombre de prises de mains saisies","Nb d'essais supplémentaires","Note / 8"]
[null,"n°1",{"$f":" IF(ISERROR(  VLOOKUP($B325,Projet,4,FALSE)),\"\", VLOOKUP($B325,Projet,4,FALSE))","v":""},{"$f":" IF(ISERROR(  VLOOKUP($B325,Projet,5,FALSE)),\"\", VLOOKUP($B325,Projet,5,FALSE))","v":""},"Toutes les couleurs",{"$f":" IF(ISERROR(   VLOOKUP(D329,deg,2)),\"\",VLOOKUP(D329,deg,2))","v":""}]
[null,"Voie","Secteur","n° corde","Couleur ","Nom","Cotation","Nb d'essais supplémentaires","Note/ 5 + 3"]
[null,"n°2",{"$f":" IF(ISERROR(  VLOOKUP($B325,Projet,4,FALSE)),\"\", VLOOKUP($B325,Projet,4,FALSE))","v":""},{"$f":" IF(ISERROR(  VLOOKUP($B325,Projet,5,FALSE)),\"\", VLOOKUP($B325,Projet,5,FALSE))","v":""},{"$f":" IF(ISERROR(  VLOOKUP($B325,Projet,6,FALSE)),\"\", VLOOKUP($B325,Projet,6,FALSE))","v":""},{"$f":" IF(ISERROR(  VLOOKUP($B325,Projet,7,FALSE)),\"\", VLOOKUP($B325,Projet,7,FALSE))","v":""},{"$f":" IF(ISERROR(  VLOOKUP($B325,Projet,8,FALSE)),\"\", VLOOKUP($B325,Projet,8,FALSE))","v":""}]
[]
[null,"Nom et prénom du juge n°1"]
[null,"Nom et prénom du juge n°2"]
[]
[]
[{"$f":"B299","v":"Groupe n° 7"},{"$f":"IF('Selection des voies d''éval'!B36=\"\",\"\",'Selection des voies d''éval'!B36)","v":""},"Nom ",{"$f":" IF(ISERROR(  VLOOKUP($B337,Projet,2,FALSE)),\"\", VLOOKUP($B337,Projet,2,FALSE))","v":""},null,"Evaluation Escalade 3°"]
[null,null,"Prénom",{"$f":" IF(ISERROR(  VLOOKUP($B337,Projet,3,FALSE)),\"\", VLOOKUP($B337,Projet,3,FALSE))","v":""}]
[]
[null,"Voie","Secteur","n° corde","Couleur ","Nombre de dégaines avant relais","Nombre de prises de mains saisies","Nb d'essais supplémentaires","Note / 8"]
[null,"n°1",{"$f":" IF(ISERROR(  VLOOKUP($B337,Projet,4,FALSE)),\"\", VLOOKUP($B337,Projet,4,FALSE))","v":""},{"$f":" IF(ISERROR(  VLOOKUP($B337,Projet,5,FALSE)),\"\", VLOOKUP($B337,Projet,5,FALSE))","v":""},"Toutes les couleurs",{"$f":" IF(ISERROR(   VLOOKUP(D341,deg,2)),\"\",VLOOKUP(D341,deg,2))","v":""}]
[null,"Voie","Secteur","n° corde","Couleur ","Nom","Cotation","Nb d'essais supplémentaires","Note/ 5 + 3"]
[null,"n°2",{"$f":" IF(ISERROR(  VLOOKUP($B337,Projet,4,FALSE)),\"\", VLOOKUP($B337,Projet,4,FALSE))","v":""},{"$f":" IF(ISERROR(  VLOOKUP($B337,Projet,5,FALSE)),\"\", VLOOKUP($B337,Projet,5,FALSE))","v":""},{"$f":" IF(ISERROR(  VLOOKUP($B337,Projet,6,FALSE)),\"\", VLOOKUP($B337,Projet,6,FALSE))","v":""},{"$f":" IF(ISERROR(  VLOOKUP($B337,Projet,7,FALSE)),\"\", VLOOKUP($B337,Projet,7,FALSE))","v":""},{"$f":" IF(ISERROR(  VLOOKUP($B337,Projet,8,FALSE)),\"\", VLOOKUP($B337,Projet,8,FALSE))","v":""}]
[]
[null,"Nom et prénom du juge n°1"]
[null,"Nom et prénom du juge n°2"]
[]
[null,"Groupe n° 8"]
[]
[{"$f":"B348","v":"Groupe n° 8"},{"$f":"IF('Selection des voies d''éval'!B38=\"\",\"\",'Selection des voies d''éval'!B38)","v":""},"Nom ",{"$f":" IF(ISERROR(  VLOOKUP($B350,Projet,2,FALSE)),\"\", VLOOKUP($B350,Projet,2,FALSE))","v":""},null,"Evaluation Escalade 3°"]
[null,null,"Prénom",{"$f":" IF(ISERROR(  VLOOKUP($B350,Projet,3,FALSE)),\"\", VLOOKUP($B350,Projet,3,FALSE))","v":""}]
[]
[null,"Voie","Secteur","n° corde","Couleur ","Nombre de dégaines avant relais","Nombre de prises de mains saisies","Nb d'essais supplémentaires","Note / 8"]
[null,"n°1",{"$f":" IF(ISERROR(  VLOOKUP($B350,Projet,4,FALSE)),\"\", VLOOKUP($B350,Projet,4,FALSE))","v":""},{"$f":" IF(ISERROR(  VLOOKUP($B350,Projet,5,FALSE)),\"\", VLOOKUP($B350,Projet,5,FALSE))","v":""},"Toutes les couleurs",{"$f":" IF(ISERROR(   VLOOKUP(D354,deg,2)),\"\",VLOOKUP(D354,deg,2))","v":""}]
[null,"Voie","Secteur","n° corde","Couleur ","Nom","Cotation","Nb d'essais supplémentaires","Note/ 5 + 3"]
[null,"n°2",{"$f":" IF(ISERROR(  VLOOKUP($B350,Projet,4,FALSE)),\"\", VLOOKUP($B350,Projet,4,FALSE))","v":""},{"$f":" IF(ISERROR(  VLOOKUP($B350,Projet,5,FALSE)),\"\", VLOOKUP($B350,Projet,5,FALSE))","v":""},{"$f":" IF(ISERROR(  VLOOKUP($B350,Projet,6,FALSE)),\"\", VLOOKUP($B350,Projet,6,FALSE))","v":""},{"$f":" IF(ISERROR(  VLOOKUP($B350,Projet,7,FALSE)),\"\", VLOOKUP($B350,Projet,7,FALSE))","v":""},{"$f":" IF(ISERROR(  VLOOKUP($B350,Projet,8,FALSE)),\"\", VLOOKUP($B350,Projet,8,FALSE))","v":""}]
[]
[null,"Nom et prénom du juge n°1"]
[null,"Nom et prénom du juge n°2"]
[]
[]
[{"$f":"B348","v":"Groupe n° 8"},{"$f":"IF('Selection des voies d''éval'!B39=\"\",\"\",'Selection des voies d''éval'!B39)","v":""},"Nom ",{"$f":" IF(ISERROR(  VLOOKUP($B362,Projet,2,FALSE)),\"\", VLOOKUP($B362,Projet,2,FALSE))","v":""},null,"Evaluation Escalade 3°"]
[null,null,"Prénom",{"$f":" IF(ISERROR(  VLOOKUP($B362,Projet,3,FALSE)),\"\", VLOOKUP($B362,Projet,3,FALSE))","v":""}]
[]
[null,"Voie","Secteur","n° corde","Couleur ","Nombre de dégaines avant relais","Nombre de prises de mains saisies","Nb d'essais supplémentaires","Note / 8"]
[null,"n°1",{"$f":" IF(ISERROR(  VLOOKUP($B362,Projet,4,FALSE)),\"\", VLOOKUP($B362,Projet,4,FALSE))","v":""},{"$f":" IF(ISERROR(  VLOOKUP($B362,Projet,5,FALSE)),\"\", VLOOKUP($B362,Projet,5,FALSE))","v":""},"Toutes les couleurs",{"$f":" IF(ISERROR(   VLOOKUP(D366,deg,2)),\"\",VLOOKUP(D366,deg,2))","v":""}]
[null,"Voie","Secteur","n° corde","Couleur ","Nom","Cotation","Nb d'essais supplémentaires","Note/ 5 + 3"]
[null,"n°2",{"$f":" IF(ISERROR(  VLOOKUP($B362,Projet,4,FALSE)),\"\", VLOOKUP($B362,Projet,4,FALSE))","v":""},{"$f":" IF(ISERROR(  VLOOKUP($B362,Projet,5,FALSE)),\"\", VLOOKUP($B362,Projet,5,FALSE))","v":""},{"$f":" IF(ISERROR(  VLOOKUP($B362,Projet,6,FALSE)),\"\", VLOOKUP($B362,Projet,6,FALSE))","v":""},{"$f":" IF(ISERROR(  VLOOKUP($B362,Projet,7,FALSE)),\"\", VLOOKUP($B362,Projet,7,FALSE))","v":""},{"$f":" IF(ISERROR(  VLOOKUP($B362,Projet,8,FALSE)),\"\", VLOOKUP($B362,Projet,8,FALSE))","v":""}]
[]
[null,"Nom et prénom du juge n°1"]
[null,"Nom et prénom du juge n°2"]
[]
[]
[{"$f":"B348","v":"Groupe n° 8"},{"$f":"IF('Selection des voies d''éval'!B40=\"\",\"\",'Selection des voies d''éval'!B40)","v":""},"Nom ",{"$f":" IF(ISERROR(  VLOOKUP($B374,Projet,2,FALSE)),\"\", VLOOKUP($B374,Projet,2,FALSE))","v":""},null,"Evaluation Escalade 3°"]
[null,null,"Prénom",{"$f":" IF(ISERROR(  VLOOKUP($B374,Projet,3,FALSE)),\"\", VLOOKUP($B374,Projet,3,FALSE))","v":""}]
[]
[null,"Voie","Secteur","n° corde","Couleur ","Nombre de dégaines avant relais","Nombre de prises de mains saisies","Nb d'essais supplémentaires","Note / 8"]
[null,"n°1",{"$f":" IF(ISERROR(  VLOOKUP($B374,Projet,4,FALSE)),\"\", VLOOKUP($B374,Projet,4,FALSE))","v":""},{"$f":" IF(ISERROR(  VLOOKUP($B374,Projet,5,FALSE)),\"\", VLOOKUP($B374,Projet,5,FALSE))","v":""},"Toutes les couleurs",{"$f":" IF(ISERROR(   VLOOKUP(D378,deg,2)),\"\",VLOOKUP(D378,deg,2))","v":""}]
[null,"Voie","Secteur","n° corde","Couleur ","Nom","Cotation","Nb d'essais supplémentaires","Note/ 5 + 3"]
[null,"n°2",{"$f":" IF(ISERROR(  VLOOKUP($B374,Projet,4,FALSE)),\"\", VLOOKUP($B374,Projet,4,FALSE))","v":""},{"$f":" IF(ISERROR(  VLOOKUP($B374,Projet,5,FALSE)),\"\", VLOOKUP($B374,Projet,5,FALSE))","v":""},{"$f":" IF(ISERROR(  VLOOKUP($B374,Projet,6,FALSE)),\"\", VLOOKUP($B374,Projet,6,FALSE))","v":""},{"$f":" IF(ISERROR(  VLOOKUP($B374,Projet,7,FALSE)),\"\", VLOOKUP($B374,Projet,7,FALSE))","v":""},{"$f":" IF(ISERROR(  VLOOKUP($B374,Projet,8,FALSE)),\"\", VLOOKUP($B374,Projet,8,FALSE))","v":""}]
[]
[null,"Nom et prénom du juge n°1"]
[null,"Nom et prénom du juge n°2"]
[]
[]
[{"$f":"B348","v":"Groupe n° 8"},{"$f":"IF('Selection des voies d''éval'!B41=\"\",\"\",'Selection des voies d''éval'!B41)","v":""},"Nom ",{"$f":" IF(ISERROR(  VLOOKUP($B386,Projet,2,FALSE)),\"\", VLOOKUP($B386,Projet,2,FALSE))","v":""},null,"Evaluation Escalade 3°"]
[null,null,"Prénom",{"$f":" IF(ISERROR(  VLOOKUP($B386,Projet,3,FALSE)),\"\", VLOOKUP($B386,Projet,3,FALSE))","v":""}]
[]
[null,"Voie","Secteur","n° corde","Couleur ","Nombre de dégaines avant relais","Nombre de prises de mains saisies","Nb d'essais supplémentaires","Note / 8"]
[null,"n°1",{"$f":" IF(ISERROR(  VLOOKUP($B386,Projet,4,FALSE)),\"\", VLOOKUP($B386,Projet,4,FALSE))","v":""},{"$f":" IF(ISERROR(  VLOOKUP($B386,Projet,5,FALSE)),\"\", VLOOKUP($B386,Projet,5,FALSE))","v":""},"Toutes les couleurs",{"$f":" IF(ISERROR(   VLOOKUP(D390,deg,2)),\"\",VLOOKUP(D390,deg,2))","v":""}]
[null,"Voie","Secteur","n° corde","Couleur ","Nom","Cotation","Nb d'essais supplémentaires","Note/ 5 + 3"]
[null,"n°2",{"$f":" IF(ISERROR(  VLOOKUP($B386,Projet,4,FALSE)),\"\", VLOOKUP($B386,Projet,4,FALSE))","v":""},{"$f":" IF(ISERROR(  VLOOKUP($B386,Projet,5,FALSE)),\"\", VLOOKUP($B386,Projet,5,FALSE))","v":""},{"$f":" IF(ISERROR(  VLOOKUP($B386,Projet,6,FALSE)),\"\", VLOOKUP($B386,Projet,6,FALSE))","v":""},{"$f":" IF(ISERROR(  VLOOKUP($B386,Projet,7,FALSE)),\"\", VLOOKUP($B386,Projet,7,FALSE))","v":""},{"$f":" IF(ISERROR(  VLOOKUP($B386,Projet,8,FALSE)),\"\", VLOOKUP($B386,Projet,8,FALSE))","v":""}]
[]
[null,"Nom et prénom du juge n°1"]
[null,"Nom et prénom du juge n°2"]

{"sheet":"Notes","index":5,"n_rows":38,"n_cols":22,"rows_kept":38,"cut":false,"hidden":false,"merged":[[1,16,2,20],[0,1,2,7]]}
[null,"Attention :                                                                                                                                  Ne rien effacer et ne rien inscrire ailleurs que dans les cases JAUNES"]
[null,null,null,null,null,null,null,null,null,null,null,null,null,null,null,null,"accepter remplacer cellules de destination"]
[]
[]
[null,"Nom ","Prénom","Note finale","Assurage  / 4","Voie","Secteur","n° corde","Couleur ","Nombre de dégaines avant relais","Nombre de prises de mains saisies","Nb d'essais supplémentaires","Note / 8","Voie","Secteur","n° corde","Couleur ","Nom","Cotation","Nb d'essais supplémentaires","Difficulté","efficacité"]
[1,{"$f":"IF(ISERROR(VLOOKUP($A6,voiesnote,2,FALSE)),\"\",( VLOOKUP($A6,voiesnote,2,FALSE)))","v":""},{"$f":"IF(ISERROR(VLOOKUP($A6,voiesnote,3,FALSE)),\"\",(VLOOKUP($A6,voiesnote,3,FALSE)))","v":""},{"$f":"IF(ISERROR(SUM(E6+M6+U6+V6)),\"\",IF(J6>4,(SUM(E6+M6+U6+V6)),(SUM(E6+((M6+U6+V6)/5*J6)))))","v":""},null,"n°1",{"$f":"IF(ISERROR(VLOOKUP($A6,voiesnote,4,FALSE)),\"\",(VLOOKUP($A6,voiesnote,4,FALSE)))","v":""},{"$f":"IF(ISERROR(VLOOKUP($A6,voiesnote,5,FALSE)),\"\",(VLOOKUP($A6,voiesnote,5,FALSE)))","v":""},"Toutes les couleurs",{"$f":" IF(ISERROR( VLOOKUP(H6,deg,2)),\"\",( VLOOKUP(H6,deg,2)))","v":""},null,null,{"$f":"IF(ISERROR(IF(K6=\"échec\",1,VLOOKUP((K6+(L6*2)),nbprises,VLOOKUP(J6,coldeg,2),FALSE))),\"\",(IF(K6=\"échec\",1,VLOOKUP((K6+(L6*2)),nbprises,VLOOKUP(J6,coldeg,2),FALSE))))","v":""},"n°2",{"$f":"IF(ISERROR(VLOOKUP($A6,voiesnote,4,FALSE)),\"\",(VLOOKUP($A6,voiesnote,4,FALSE)))","v":""},{"$f":"IF(ISERROR(VLOOKUP($A6,voiesnote,5,FALSE)),\"\",(VLOOKUP($A6,voiesnote,5,FALSE)))","v":""},{"$f":"IF(ISERROR(VLOOKUP($A6,voiesnote,6,FALSE)),\"\",(VLOOKUP($A6,voiesnote,6,FALSE)))","v":""},{"$f":"IF(ISERROR(VLOOKUP($A6,voiesnote,7,FALSE)),\"\",(VLOOKUP($A6,voiesnote,7,FALSE)))","v":""},{"$f":"IF(ISERROR(VLOOKUP($A6,voiesnote,8,FALSE)),\"\",(VLOOKUP($A6,voiesnote,8,FALSE)))","v":""},null,{"$f":"IF(ISERROR(IF(T6=\"échec\",1,VLOOKUP(S6,diff,2))),\"\",(IF(T6=\"échec\",1,VLOOKUP(S6,diff,2))))","v":""},{"$f":"IF(T6=\"\",\"\",(VLOOKUP(T6,eff,2,FALSE)))","v":""}]
[2,"","",{"$f":"IF(ISERROR(SUM(E7+M7+U7+V7)),\"\",IF(J7>4,(SUM(E7+M7+U7+V7)),(SUM(E7+((M7+U7+V7)/5*J7)))))","v":""},null,"n°1","","","Toutes les couleurs","",null,null,"","n°2","","","","","",null,"",""]
[3,"","","",null,"n°1","","","Toutes les couleurs","",null,null,"","n°2","","","","","",null,"",""]
[4,"","","",null,"n°1","","","Toutes les couleurs","",null,null,"","n°2","","","","","",null,"",""]
[5,"","","",null,"n°1","","","Toutes les couleurs","",null,null,"","n°2","","","","","",null,"",""]
[6,"","","",null,"n°1","","","Toutes les couleurs","",null,null,"","n°2","","","","","",null,"",""]
[7,"","","",null,"n°1","","","Toutes les couleurs","",null,null,"","n°2","","","","","",null,"",""]
[8,"","","",null,"n°1","","","Toutes les couleurs","",null,null,"","n°2","","","","","",null,"",""]
[9,"","","",null,"n°1","","","Toutes les couleurs","",null,null,"","n°2","","","","","",null,"",""]
[10,"","","",null,"n°1","","","Toutes les couleurs","",null,null,"","n°2","","","","","",null,"",""]
[11,"","","",null,"n°1","","","Toutes les couleurs","",null,null,"","n°2","","","","","",null,"",""]
[12,"","","",null,"n°1","","","Toutes les couleurs","",null,null,"","n°2","","","","","",null,"",""]
[13,"","","",null,"n°1","","","Toutes les couleurs","",null,null,"","n°2","","","","","",null,"",""]
[14,"","","",null,"n°1","","","Toutes les couleurs","",null,null,"","n°2","","","","","",null,"",""]
[15,"","","",null,"n°1","","","Toutes les couleurs","",null,null,"","n°2","","","","","",null,"",""]
[16,"","","",null,"n°1","","","Toutes les couleurs","",null,null,"","n°2","","","","","",null,"",""]
[17,"","","",null,"n°1","","","Toutes les couleurs","",null,null,"","n°2","","","","","",null,"",""]
[18,"","","",null,"n°1","","","Toutes les couleurs","",null,null,"","n°2","","","","","",null,"",""]
[19,"","","",null,"n°1","","","Toutes les couleurs","",null,null,"","n°2","","","","","",null,"",""]
[20,"","","",null,"n°1","","","Toutes les couleurs","",null,null,"","n°2","","","","","",null,"",""]
[21,"","","",null,"n°1","","","Toutes les couleurs","",null,null,"","n°2","","","","","",null,"",""]
[22,"","","",null,"n°1","","","Toutes les couleurs","",null,null,"","n°2","","","","","",null,"",""]
[23,"","","",null,"n°1","","","Toutes les couleurs","",null,null,"","n°2","","","","","",null,"",""]
[24,"","","",null,"n°1","","","Toutes les couleurs","",null,null,"","n°2","","","","","",null,"",""]
[25,"","","",null,"n°1","","","Toutes les couleurs","",null,null,"","n°2","","","","","",null,"",""]
[26,"","","",null,"n°1","","","Toutes les couleurs","",null,null,"","n°2","","","","","",null,"",""]
[27,"","","",null,"n°1","","","Toutes les couleurs","",null,null,"","n°2","","","","","",null,"",""]
[28,"","","",null,"n°1","","","Toutes les couleurs","",null,null,"","n°2","","","","","",null,"",""]
[29,"","","",null,"n°1","","","Toutes les couleurs","",null,null,"","n°2","","","","","",null,"",""]
[30,"","","",null,"n°1","","","Toutes les couleurs","",null,null,"","n°2","","","","","",null,"",""]
[]
[]
[null,null,"Moyenne ",{"$f":"AVERAGE(D6:D35)","v":{"$error":"#DIV/0!"}}]

{"sheet":"Feuil2","index":6,"n_rows":0,"n_cols":0,"rows_kept":0,"cut":false,"hidden":false,"merged":[]}

{"sheet":"Feuil3","index":7,"n_rows":0,"n_cols":0,"rows_kept":0,"cut":false,"hidden":false,"merged":[]}

{"sheet":"Feuil6","index":8,"n_rows":0,"n_cols":0,"rows_kept":0,"cut":false,"hidden":false,"merged":[]}

{"sheet":"Feuil4","index":9,"n_rows":0,"n_cols":0,"rows_kept":0,"cut":false,"hidden":false,"merged":[]}

{"sheet":"Feuil1","index":10,"n_rows":0,"n_cols":0,"rows_kept":0,"cut":false,"hidden":false,"merged":[]}

{"sheet":"Feuil5","index":11,"n_rows":0,"n_cols":0,"rows_kept":0,"cut":false,"hidden":false,"merged":[]}

{"sheet":"Barèmes","index":12,"n_rows":55,"n_cols":24,"rows_kept":55,"cut":false,"hidden":false,"merged":[[15,4,15,5],[3,19,3,23],[5,4,5,5],[5,14,5,15],[6,4,6,5],[6,6,6,15],[7,4,11,4],[7,15,11,15]]}
[]
[]
[]
[null,null,null,null,null,null,null,null,null,null,null,null,null,null,null,null,null,null,null,"dégaines"]
[null,null,null,null,null,null,null,null,null,null,null,null,null,null,null,null,null,null,"nb de prise  de mains","3 deg","4 deg","5 deg","6 deg","7 deg"]
[null,"difficulté","note",null,"NOTES",null,8,7,6,5,4,3,2,1,0,null,null,null,1,8,8,8,8,8]
[null,"3c",0.5,null,null,null,"Nombre de prises saisies",null,null,null,null,null,null,null,null,null,null,null,2,8,8,8,8,8]
[null,"4a",1,null,"Nombre de dégaines dans la voie","3 dég.",5,6,7,8,9,10,11,12,"15 et +","Relais non atteint ou temps dépassé",null,null,3,8,8,8,8,8]
[null,"4b",1.5,null,null,"4 dég. ",6,7,8,9,10,11,12,13,"16 et +",null,null,null,4,8,8,8,8,8]
[null,"4c",2,null,null,"5 dég.",7,8,9,10,11,12,13,14,"17 et +",null,null,null,5,8,8,8,8,8]
[null,"5a",2.5,null,null,"6 dég.",8,9,10,11,12,13,14,15,"18 et +",null,null,null,6,7,8,8,8,8]
[null,"5b",3,null,null,"7 dég.",9,10,11,12,13,14,15,16,"19 et +",null,null,null,7,6,7,8,8,8]
[null,null,null,null,null,null,null,null,null,null,null,null,null,null,null,null,null,null,8,5,6,7,8,8]
[null,null,null,null,null,null,null,null,null,null,null,null,null,null,null,null,null,null,9,4,5,6,7,8]
[null,null,null,null,null,null,null,null," nb deg","col",null,null,null,null,null,null,null,null,10,3,4,5,6,7]
[null,null,null,null,"Pertinence et efficacité du projet de la voie couleur",null,null,null,3,2,null,null,null,null,null,null,null,null,11,2,3,4,5,6]
[null,null,null,null,"Nombre d'essais supplémentaires","Note",null,null,4,3,null,null,null,null,null,null,null,null,12,1,2,3,4,5]
[null,null,null,null,0,5,null,null,5,4,null,null,null,null,null,null,null,null,13,1,1,2,3,4]
[null,null,null,null,1,3,null,null,6,5,null,null,null,null,null,null,null,null,14,1,1,1,2,3]
[null,null,null,null,2,1,null,null,7,6,null,null,null,null,null,null,null,null,15,0,1,1,1,2]
[null,null,null,null,3,0,null,null,null,null,null,null,null,null,null,null,null,null,16,0,0,1,1,1]
[null,null,null,null,"echec",0,null,null,null,null,null,null,null,null,null,null,null,null,17,0,0,0,1,1]
[null,null,null,null,"échec",0,null,null,null,null,null,null,null,null,null,null,null,null,18,0,0,0,0,1]
[null,null,null,null,null,null,null,null,null,null,null,null,null,null,null,null,null,null,19,0,0,0,0,0]
[null,null,null,null,null,null,null,null,null,null,null,null,null,null,null,null,null,null,20,0,0,0,0,0]
[null,null,null,null,null,null,null,null,null,null,null,null,null,null,null,null,null,null,21,0,0,0,0,0]
[null,null,null,null,null,null,null,null,null,null,null,null,null,null,null,null,null,null,22,0,0,0,0,0]
[null,null,null,null,null,null,null,null,null,null,null,null,null,null,null,null,null,null,23,0,0,0,0,0]
[null,null,null,null,null,null,null,null,null,null,null,null,null,null,null,null,null,null,24,0,0,0,0,0]
[null,null,null,null,null,null,null,null,null,null,null,null,null,null,null,null,null,null,25,0,0,0,0,0]
[null,null,null,null,null,null,null,null,null,null,null,null,null,null,null,null,null,null,26,0,0,0,0,0]
[null,null,null,null,null,null,null,null,null,null,null,null,null,null,null,null,null,null,27,0,0,0,0,0]
[null,null,null,null,null,null,null,null,null,null,null,null,null,null,null,null,null,null,28,0,0,0,0,0]
[null,null,null,null,null,null,null,null,null,null,null,null,null,null,null,null,null,null,29,0,0,0,0,0]
[null,null,null,null,null,null,null,null,null,null,null,null,null,null,null,null,null,null,30,0,0,0,0,0]
[null,null,null,null,null,null,null,null,null,null,null,null,null,null,null,null,null,null,31,0,0,0,0,0]
[null,null,null,null,null,null,null,null,null,null,null,null,null,null,null,null,null,null,32,0,0,0,0,0]
[null,null,null,null,null,null,null,null,null,null,null,null,null,null,null,null,null,null,33,0,0,0,0,0]
[null,null,null,null,null,null,null,null,null,null,null,null,null,null,null,null,null,null,34,0,0,0,0,0]
[null,null,null,null,null,null,null,null,null,null,null,null,null,null,null,null,null,null,35,0,0,0,0,0]
[null,null,null,null,null,null,null,null,null,null,null,null,null,null,null,null,null,null,36,0,0,0,0,0]
[null,null,null,null,null,null,null,null,null,null,null,null,null,null,null,null,null,null,37,0,0,0,0,0]
[null,null,null,null,null,null,null,null,null,null,null,null,null,null,null,null,null,null,38,0,0,0,0,0]
[null,null,null,null,null,null,null,null,null,null,null,null,null,null,null,null,null,null,39,0,0,0,0,0]
[null,null,null,null,null,null,null,null,null,null,null,null,null,null,null,null,null,null,40,0,0,0,0,0]
[null,null,null,null,null,null,null,null,null,null,null,null,null,null,null,null,null,null,41,0,0,0,0,0]
[null,null,null,null,null,null,null,null,null,null,null,null,null,null,null,null,null,null,42,0,0,0,0,0]
[null,null,null,null,null,null,null,null,null,null,null,null,null,null,null,null,null,null,43,0,0,0,0,0]
[null,null,null,null,null,null,null,null,null,null,null,null,null,null,null,null,null,null,44,0,0,0,0,0]
[null,null,null,null,null,null,null,null,null,null,null,null,null,null,null,null,null,null,45,0,0,0,0,0]
[null,null,null,null,null,null,null,null,null,null,null,null,null,null,null,null,null,null,46,0,0,0,0,0]
[null,null,null,null,null,null,null,null,null,null,null,null,null,null,null,null,null,null,47,0,0,0,0,0]
[null,null,null,null,null,null,null,null,null,null,null,null,null,null,null,null,null,null,48,0,0,0,0,0]
[null,null,null,null,null,null,null,null,null,null,null,null,null,null,null,null,null,null,"echec",0,0,0,0,0]
[null,null,null,null,null,null,null,null,null,null,null,null,null,null,null,null,null,null,"échec",0,0,0,0,0]

{"sheet":"dégaines","index":13,"n_rows":26,"n_cols":5,"rows_kept":26,"cut":false,"hidden":false,"merged":[[6,4,7,4],[1,4,5,4],[8,4,11,4],[12,4,19,4],[20,4,24,4]]}
[null,null,"corde","Nb dégaines"]
[null,null,1,2,"initiation"]
[null,null,2,3]
[null,null,3,3]
[null,null,4,4]
[null,null,5,5]
[null,null,6,5,"K 2000"]
[null,null,7,5]
[null,null,8,7,"Dalle"]
[null,null,9,7]
[null,null,10,7]
[null,null,11,7]
[null,null,12,7,"Diamant "]
[null,null,13,7]
[null,null,14,7]
[null,null,15,7]
[null,null,16,7]
[null,null,17,7]
[null,null,18,7]
[null,null,19,7]
[null,null,20,6,"3 D"]
[null,null,21,4]
[null,null,22,5]
[null,null,23,5]
[null,null,24,4]
[null,null,25,4,"Grotte "]

{"sheet":"voies notes","index":14,"n_rows":0,"n_cols":0,"rows_kept":0,"cut":false,"hidden":false,"merged":[[2,1,2,3],[2,4,2,8]]}